{"text_format":"3","workbook":"xlsx","n_sheets":6,"sheets":["REHAU RAUPEX","Ringleitung","Strangleitung","Anleitung","Nutzungsbedingungen","Sprachen"],"not_rendered":{"charts":4,"images":3,"defined_names":7},"read":"whole","date_system":"1900"}

{"sheet":"REHAU RAUPEX","index":0,"n_rows":35,"n_cols":19,"rows_kept":35,"merged":[[1,17,2,18],[5,1,5,8],[5,10,9,15],[5,17,8,18],[7,1,9,8]]}
[]
[null,{"$f":"HLOOKUP(S10,Sprachen!A1:T99,2,0)","v":"RAUPEX INDUSTRIEROHRSYSTEM - DRUCKVERLUSTBETRACHTUNG VORLAUF MEDIUM WASSER"},{"$nulls":15},"REHAU AG+Co"]
[]
[]
[]
[null,{"$f":"HLOOKUP(S10,Sprachen!A1:T99,4,0)","v":"… Benennung der Rohranlage"},{"$nulls":8},{"$f":"HLOOKUP(S10,Sprachen!A1:T99,6,0)","v":"… Platz für weitere Notizen."},{"$nulls":6},{"$f":"HLOOKUP(S10,Sprachen!A1:T99,3,0)","v":"Bitte beachten Sie die\nHinweise in den\nNutzungsbedingungen"}]
[]
[null,{"$f":"HLOOKUP(S10,Sprachen!A1:T99,5,0)","v":"Ergebnis:\nDer Gesamtdruckverlust im dargestellten Vorlauf beträgt … bar."}]
[]
[{"$nulls":17},{"$f":"HLOOKUP(S10,Sprachen!A1:T99,76,0)","v":"Sprache wählen"},"Deutsch"]
{"$rows_empty":24}
[null,{"$f":"HLOOKUP(S10,Sprachen!A1:T99,7,0)","v":"Hinweis: Die Rohrnetzskizze kann aus aus jeder anderen Anwendung heraus kopiert und auf dieser Seite eingefügt werden."}]

{"sheet":"Ringleitung","index":1,"n_rows":58,"n_cols":68,"rows_kept":58,"merged":[[2,10,2,13],[4,35,8,38],[6,22,6,28],[11,7,11,9],[12,7,12,9],[15,17,16,17],[15,18,16,18],[15,20,16,20],[18,36,18,37],[48,33,49,38]]}
[]
[]
[]
[]
[{"$nulls":17},{"$f":"HLOOKUP('REHAU RAUPEX'!S10,Sprachen!A1:T99,8,0)","v":"RAUPEX INDUSTRIEROHRSYSTEM - RINGLEITUNG VORLAUF MEDIUM WASSER"},{"$nulls":17},{"$f":"HLOOKUP('REHAU RAUPEX'!S10,Sprachen!A1:T99,3,0)","v":"Bitte beachten Sie die\nHinweise in den\nNutzungsbedingungen"}]
[]
[{"$nulls":17},{"$f":"HLOOKUP('REHAU RAUPEX'!S10,Sprachen!A1:T99,9,0)","v":"Betrachtung Vorlauf"},{"$nulls":4},{"$f":"'REHAU RAUPEX'!B6","v":"… Benennung der Rohranlage"}]
[{"$nulls":17},{"$f":"HLOOKUP('REHAU RAUPEX'!S10,Sprachen!A1:T99,10,0)","v":"Gesamtdruckverlust im Vorlauf < 0,2 bar"}]
[{"$nulls":22},{"$f":"HLOOKUP('REHAU RAUPEX'!S10,Sprachen!A1:T99,11,0)","v":"Wassertemperatur:"},null,null,{"$f":"Strangleitung!Z9","v":20},"[°C]"]
[]
[]
[]
[{"$nulls":56},"lamb0","lamb1","lamb2","lamb3","lamb4","lamb5","lamb6","lamb7","lamb8","lamb9","lamb10","Fehler"]
[]
[]
[{"$nulls":17},{"$f":"HLOOKUP('REHAU RAUPEX'!S10,Sprachen!A1:T99,15,0)","v":"RINGLEITUNG in beiden Fließrichtungen erfassen bis der theoretische hydraulische Nullpunkt definiert ist."},{"$f":"HLOOKUP('REHAU RAUPEX'!S10,Sprachen!A1:T99,16,0)","v":"Teilstrecke"},{"$f":"HLOOKUP('REHAU RAUPEX'!S10,Sprachen!A1:T99,17,0)","v":"RAUPEX Rohr"},{"$f":"HLOOKUP('REHAU RAUPEX'!S10,Sprachen!A1:T99,18,0)","v":"Verbraucher"},{"$f":"HLOOKUP('REHAU RAUPEX'!S10,Sprachen!A1:T99,19,0)","v":"Volumen-\nstrom\nabgehend"},{"$f":"HLOOKUP('REHAU RAUPEX'!S10,Sprachen!A1:T99,20,0)","v":"Volumen-\nstrom\ngesamt"},{"$f":"HLOOKUP('REHAU RAUPEX'!S10,Sprachen!A1:T99,21,0)","v":"Rohr-\nlänge"},{"$f":"HLOOKUP('REHAU RAUPEX'!S10,Sprachen!A1:T99,22,0)","v":"Winkel 90°"},{"$f":"HLOOKUP('REHAU RAUPEX'!S10,Sprachen!A1:T99,23,0)","v":"Winkel 45°"},{"$f":"HLOOKUP('REHAU RAUPEX'!S10,Sprachen!A1:T99,24,0)","v":"T-Stück Abzweig"},{"$f":"HLOOKUP('REHAU RAUPEX'!S10,Sprachen!A1:T99,25,0)","v":"T-Stück Durchgang"},{"$f":"HLOOKUP('REHAU RAUPEX'!S10,Sprachen!A1:T99,26,0)","v":"T-Stück Verteilung"},{"$f":"HLOOKUP('REHAU RAUPEX'!S10,Sprachen!A1:T99,27,0)","v":"T-Stück Vereinigung"},{"$f":"HLOOKUP('REHAU RAUPEX'!S10,Sprachen!A1:T99,28,0)","v":"Redu-\nzierung"},"Absperr-schieber","Kugelhahn",{"$f":"HLOOKUP('REHAU RAUPEX'!S10,Sprachen!A1:T99,29,0)","v":"Rohr-\nreibung"},{"$f":"HLOOKUP('REHAU RAUPEX'!S10,Sprachen!A1:T99,30,0)","v":"Reynolds-\nzahl"},{"$f":"HLOOKUP('REHAU RAUPEX'!S10,Sprachen!A1:T99,31,0)","v":"Geschwin-\ndigkeit"},{"$f":"HLOOKUP('REHAU RAUPEX'!S10,Sprachen!A1:T99,32,0)","v":"Druckverlust Formteile"},{"$f":"HLOOKUP('REHAU RAUPEX'!S10,Sprachen!A1:T99,33,0)","v":"Druckverlust Rohr"},{"$f":"HLOOKUP('REHAU RAUPEX'!S10,Sprachen!A1:T99,34,0)","v":"Druckverlust Formteil + Rohr"},{"$f":"HLOOKUP('REHAU RAUPEX'!S10,Sprachen!A1:T99,34,0)","v":"Druckverlust Formteil + Rohr"},{"$f":"HLOOKUP('REHAU RAUPEX'!S10,Sprachen!A1:T99,35,0)","v":"Druckverlust Gruppierung kommuliert"}]
[{"$nulls":19},"SDR 11",null,"[l/min]","[l/min]","[m]",1.3,0.5,1.3,0.3,1.5,1.3,0.4,0.5,0.1,"[Pa/m]","Re","[m/s]","[Pa]","[Pa]","[Pa]","[bar]","[bar]"]
[]
[{"$nulls":50},"Rohrauswahl pro Zeile",null,null,"k=","di=","Re=","lamb0","lamb1","lamb2","lamb3","lamb4","lamb5","lamb6","lamb7","lamb8","lamb9","lamb10"]
[{"$nulls":17},"RINGLEITUNG LINKS",{"$nulls":4},{"$f":"IF(OR(V21=0,V20=0),V20,V20+W21)","v":0},{"$nulls":10},{"$f":"IFERROR(BO20*$BG$51*(AJ20^2)/(AY20-2*AZ20)/2/10^-3,0)","v":0},{"$f":"IFERROR(AJ20*(AY20-2*AZ20)/$BG$53/1000,0)","v":0},{"$f":"IFERROR((W20/60)*4000/((AY20-2*AZ20)^2)/PI(),0)","v":{"v":0,"d":"0.00"}},{"$f":"(Y20*$Y$17*($BG$51/2)*AJ20^2)+(Z20*$Z$17*($BG$51/2)*AJ20^2)+(AA20*$AA$17*($BG$51/2)*AJ20^2)+(AB20*$AB$17*($BG$51/2)*AJ20^2)+(AC20*$AC$17*($BG$51/2)*AJ20^2)+(AD20*$AD$17*($BG$51/2)*AJ20^2)+(AE20*$AE$17*($BG$51/2)*AJ20^2)+(AF20*$L$12*($BG$51/2)*AJ20^2)+(AG20*$L$13*($BG$51/2)*AJ20^2)","v":0},{"$f":"AH20*X20","v":0},{"$f":"AK20+AL20","v":0},{"$f":"(AK20+AL20)/100000","v":{"v":0,"d":"0.00"}},{"$f":"IF(V20=0,0,IF(AO19=0,AN20,(AN20+AO19)))","v":{"v":0,"d":"0.000"}},{"$nulls":9},{"$f":"T20","v":0},{"$f":"IFERROR(LOOKUP(AY20,$BB$49:$BC$58),0)","v":0},null,{"$f":"$BG$52","v":{"v":0.007,"d":"0.007 "}},{"$f":"AY20-AZ20-AZ20","v":{"v":0,"d":"0.0"}},{"$f":"AI20","v":0},{"v":0.1,"d":"0.1 "},{"$f":"(-2*LOG(((BB20/BC20)/3.71)+(2.51/(BD20*(BE20)^0.5))))^(-2)","v":{"$error":"#DIV/0!"}},{"$f":"(-2*LOG(((BB20/BC20)/3.71)+(2.51/(BD20*(BF20)^0.5))))^(-2)","v":{"$error":"#DIV/0!"}},{"$f":"(-2*LOG(((BB20/BC20)/3.71)+(2.51/(BD20*(BG20)^0.5))))^(-2)","v":{"$error":"#DIV/0!"}},{"$f":"(-2*LOG(((BB20/BC20)/3.71)+(2.51/(BD20*(BH20)^0.5))))^(-2)","v":{"$error":"#DIV/0!"}},{"$f":"(-2*LOG(((BB20/BC20)/3.71)+(2.51/(BD20*(BI20)^0.5))))^(-2)","v":{"$error":"#DIV/0!"}},{"$f":"(-2*LOG(((BB20/BC20)/3.71)+(2.51/(BD20*(BJ20)^0.5))))^(-2)","v":{"$error":"#DIV/0!"}},{"$f":"(-2*LOG(((BB20/BC20)/3.71)+(2.51/(BD20*(BK20)^0.5))))^(-2)","v":{"$error":"#DIV/0!"}},{"$f":"(-2*LOG(((BB20/BC20)/3.71)+(2.51/(BD20*(BL20)^0.5))))^(-2)","v":{"$error":"#DIV/0!"}},{"$f":"(-2*LOG(((BB20/BC20)/3.71)+(2.51/(BD20*(BM20)^0.5))))^(-2)","v":{"$error":"#DIV/0!"}},{"$f":"(-2*LOG(((BB20/BC20)/3.71)+(2.51/(BD20*(BN20)^0.5))))^(-2)","v":{"$error":"#DIV/0!"}}]
[{"$nulls":17},"Ringleitungsabschnitt","R1",32,"Z2",8,15.2,{"v":10,"d":"10.0"},1,null,null,1,{"$nulls":5},{"v":125.24721743472955,"d":"125"},{"v":12189.493123819584,"d":"12189"},{"v":0.4698939717958955,"d":"0.47"},{"v":176.35078484931506,"d":"176"},{"v":1252.4721743472955,"d":"1252"},{"v":1428.8229591966106,"d":"1429"},{"v":0.014288229591966106,"d":"0.01"},{"v":0.014288229591966106,"d":"0.014"},{"$nulls":9},32,2.9,null,{"v":0.007,"d":"0.007 "},{"v":26.200000000000003,"d":"26.2"},{"v":12189.493123819584,"d":"12189"},{"v":0.1,"d":"0.1 "},{"v":0.025343788401633073,"d":"0.0253 "},{"v":0.030463274569158174,"d":"0.0305 "},{"v":0.02967598459702812,"d":"0.0297 "},{"v":0.029785907595601544,"d":"0.0298 "},{"v":0.02977034397352609,"d":"0.0298 "},{"v":0.02977254324014425,"d":"0.0298 "},{"v":0.029772232379331423,"d":"0.0298 "},{"v":0.02977227631699795,"d":"0.0298 "},{"v":0.02977227010672893,"d":"0.0298 "},{"v":0.02977227098450452,"d":"0.02977 "}]
[{"$nulls":17},"Ringleitungsabschnitt","R2",32,"Z3",7.2,7.2,{"v":15,"d":"15.0"},1,null,1,{"$nulls":6},{"v":34.17572280362656,"d":"34"},{"v":5773.970427072438,"d":"5774"},{"v":0.22258135506121374,"d":"0.22"},{"v":64.2996455839089,"d":"64"},{"v":512.6358420543985,"d":"513"},{"v":576.9354876383074,"d":"577"},{"v":0.005769354876383075,"d":"0.01"},{"v":0.020057584468349182,"d":"0.020"},{"$nulls":9},32,2.9,null,{"v":0.007,"d":"0.007 "},{"v":26.200000000000003,"d":"26.2"},{"v":5773.970427072438,"d":"5774"},{"v":0.1,"d":"0.1 "},{"v":0.031004013617042834,"d":"0.0310 "},{"v":0.037124247435796114,"d":"0.0371 "},{"v":0.036061483077111704,"d":"0.0361 "},{"v":0.03622952465192343,"d":"0.0362 "},{"v":0.03620254344001193,"d":"0.0362 "},{"v":0.036206865015028115,"d":"0.0362 "},{"v":0.0362061725573238,"d":"0.0362 "},{"v":0.03620628350472058,"d":"0.0362 "},{"v":0.036206265728257275,"d":"0.0362 "},{"v":0.036206268576473154,"d":"0.03621 "}]
[{"$nulls":22},0,{"$nulls":10},0,0,{"v":0,"d":"0.00"},0,0,0,{"v":0,"d":"0.00"},{"v":0,"d":"0.000"},{"$nulls":9},0,0,null,{"v":0.007,"d":"0.007 "},{"v":0,"d":"0.0"},0,{"v":0.1,"d":"0.1 "},{"$error":"#DIV/0!"},{"$error":"#DIV/0!"},{"$error":"#DIV/0!"},{"$error":"#DIV/0!"},{"$error":"#DIV/0!"},{"$error":"#DIV/0!"},{"$error":"#DIV/0!"},{"$error":"#DIV/0!"},{"$error":"#DIV/0!"},{"$error":"#DIV/0!"}]
[{"$nulls":22},0,{"$nulls":10},0,0,{"v":0,"d":"0.00"},0,0,0,{"v":0,"d":"0.00"},{"v":0,"d":"0.000"},{"$nulls":9},0,0,null,{"v":0.007,"d":"0.007 "},{"v":0,"d":"0.0"},0,{"v":0.1,"d":"0.1 "},{"$error":"#DIV/0!"},{"$error":"#DIV/0!"},{"$error":"#DIV/0!"},{"$error":"#DIV/0!"},{"$error":"#DIV/0!"},{"$error":"#DIV/0!"},{"$error":"#DIV/0!"},{"$error":"#DIV/0!"},{"$error":"#DIV/0!"},{"$error":"#DIV/0!"}]
[{"$nulls":22},0,{"$nulls":10},0,0,{"v":0,"d":"0.00"},0,0,0,{"v":0,"d":"0.00"},{"v":0,"d":"0.000"},{"$nulls":9},0,0,null,{"v":0.007,"d":"0.007 "},{"v":0,"d":"0.0"},0,{"v":0.1,"d":"0.1 "},{"$error":"#DIV/0!"},{"$error":"#DIV/0!"},{"$error":"#DIV/0!"},{"$error":"#DIV/0!"},{"$error":"#DIV/0!"},{"$error":"#DIV/0!"},{"$error":"#DIV/0!"},{"$error":"#DIV/0!"},{"$error":"#DIV/0!"},{"$error":"#DIV/0!"}]
[{"$nulls":22},0,{"$nulls":10},0,0,{"v":0,"d":"0.00"},0,0,0,{"v":0,"d":"0.00"},{"v":0,"d":"0.000"},{"$nulls":9},0,0,null,{"v":0.007,"d":"0.007 "},{"v":0,"d":"0.0"},0,{"v":0.1,"d":"0.1 "},{"$error":"#DIV/0!"},{"$error":"#DIV/0!"},{"$error":"#DIV/0!"},{"$error":"#DIV/0!"},{"$error":"#DIV/0!"},{"$error":"#DIV/0!"},{"$error":"#DIV/0!"},{"$error":"#DIV/0!"},{"$error":"#DIV/0!"},{"$error":"#DIV/0!"}]
[{"$nulls":22},0,{"$nulls":10},0,0,{"v":0,"d":"0.00"},0,0,0,{"v":0,"d":"0.00"},{"v":0,"d":"0.000"},{"$nulls":9},0,0,null,{"v":0.007,"d":"0.007 "},{"v":0,"d":"0.0"},0,{"v":0.1,"d":"0.1 "},{"$error":"#DIV/0!"},{"$error":"#DIV/0!"},{"$error":"#DIV/0!"},{"$error":"#DIV/0!"},{"$error":"#DIV/0!"},{"$error":"#DIV/0!"},{"$error":"#DIV/0!"},{"$error":"#DIV/0!"},{"$error":"#DIV/0!"},{"$error":"#DIV/0!"}]
[{"$nulls":22},0,{"$nulls":10},0,0,{"v":0,"d":"0.00"},0,0,0,{"v":0,"d":"0.00"},{"v":0,"d":"0.000"},{"$nulls":9},0,0,null,{"v":0.007,"d":"0.007 "},{"v":0,"d":"0.0"},0,{"v":0.1,"d":"0.1 "},{"$error":"#DIV/0!"},{"$error":"#DIV/0!"},{"$error":"#DIV/0!"},{"$error":"#DIV/0!"},{"$error":"#DIV/0!"},{"$error":"#DIV/0!"},{"$error":"#DIV/0!"},{"$error":"#DIV/0!"},{"$error":"#DIV/0!"},{"$error":"#DIV/0!"}]
[{"$nulls":22},0,{"$nulls":10},0,0,{"v":0,"d":"0.00"},0,0,0,{"v":0,"d":"0.00"},{"v":0,"d":"0.000"},{"$nulls":9},0,0,null,{"v":0.007,"d":"0.007 "},{"v":0,"d":"0.0"},0,{"v":0.1,"d":"0.1 "},{"$error":"#DIV/0!"},{"$error":"#DIV/0!"},{"$error":"#DIV/0!"},{"$error":"#DIV/0!"},{"$error":"#DIV/0!"},{"$error":"#DIV/0!"},{"$error":"#DIV/0!"},{"$error":"#DIV/0!"},{"$error":"#DIV/0!"},{"$error":"#DIV/0!"}]
[{"$nulls":22},0,{"$nulls":10},0,0,{"v":0,"d":"0.00"},0,0,0,{"v":0,"d":"0.00"},{"v":0,"d":"0.000"},{"$nulls":9},0,0,null,{"v":0.007,"d":"0.007 "},{"v":0,"d":"0.0"},0,{"v":0.1,"d":"0.1 "},{"$error":"#DIV/0!"},{"$error":"#DIV/0!"},{"$error":"#DIV/0!"},{"$error":"#DIV/0!"},{"$error":"#DIV/0!"},{"$error":"#DIV/0!"},{"$error":"#DIV/0!"},{"$error":"#DIV/0!"},{"$error":"#DIV/0!"},{"$error":"#DIV/0!"}]
[{"$nulls":22},0,{"$nulls":10},0,0,{"v":0,"d":"0.00"},0,0,0,{"v":0,"d":"0.00"},{"v":0,"d":"0.000"},{"$nulls":9},0,0,null,{"v":0.007,"d":"0.007 "},{"v":0,"d":"0.0"},0,{"v":0.1,"d":"0.1 "},{"$error":"#DIV/0!"},{"$error":"#DIV/0!"},{"$error":"#DIV/0!"},{"$error":"#DIV/0!"},{"$error":"#DIV/0!"},{"$error":"#DIV/0!"},{"$error":"#DIV/0!"},{"$error":"#DIV/0!"},{"$error":"#DIV/0!"},{"$error":"#DIV/0!"}]
[{"$nulls":22},0,{"$nulls":10},0,0,{"v":0,"d":"0.00"},{"$f":"SUM(AK20:AK31)","v":{"v":240.65043043322396,"d":"241"}},{"$f":"SUM(AL20:AL31)","v":{"v":1765.108016401694,"d":"1765"}},{"$f":"SUM(AM20:AM31)","v":{"v":2005.758446834918,"d":"2006"}},{"$f":"SUM(AN20:AN31)","v":{"v":0.020057584468349182,"d":"0.020"}},{"v":0,"d":"0.000"},{"$nulls":9},0,0,null,{"v":0.007,"d":"0.007 "},{"v":0,"d":"0.0"},0,{"v":0.1,"d":"0.1 "},{"$error":"#DIV/0!"},{"$error":"#DIV/0!"},{"$error":"#DIV/0!"},{"$error":"#DIV/0!"},{"$error":"#DIV/0!"},{"$error":"#DIV/0!"},{"$error":"#DIV/0!"},{"$error":"#DIV/0!"},{"$error":"#DIV/0!"},{"$error":"#DIV/0!"}]
[{"$nulls":22},0,{"$nulls":10},0,0,{"v":0,"d":"0.00"},0,0,0,{"v":0,"d":"0.00"},{"v":0,"d":"0.000"},{"$nulls":9},0,0,null,{"v":0.007,"d":"0.007 "},{"v":0,"d":"0.0"},0,{"v":0.1,"d":"0.1 "},{"$error":"#DIV/0!"},{"$error":"#DIV/0!"},{"$error":"#DIV/0!"},{"$error":"#DIV/0!"},{"$error":"#DIV/0!"},{"$error":"#DIV/0!"},{"$error":"#DIV/0!"},{"$error":"#DIV/0!"},{"$error":"#DIV/0!"},{"$error":"#DIV/0!"}]
[{"$nulls":17},"RINGLEITUNG RECHTS",{"$nulls":4},0,{"$nulls":10},0,0,{"v":0,"d":"0.00"},0,0,0,{"v":0,"d":"0.00"},{"v":0,"d":"0.000"},{"$nulls":9},0,0,null,{"v":0.007,"d":"0.007 "},{"v":0,"d":"0.0"},0,{"v":0.1,"d":"0.1 "},{"$error":"#DIV/0!"},{"$error":"#DIV/0!"},{"$error":"#DIV/0!"},{"$error":"#DIV/0!"},{"$error":"#DIV/0!"},{"$error":"#DIV/0!"},{"$error":"#DIV/0!"},{"$error":"#DIV/0!"},{"$error":"#DIV/0!"},{"$error":"#DIV/0!"}]
[{"$nulls":17},"Ringleitungsabschnitt","R5",32,"Z4",8,16.8,{"v":10,"d":"10.0"},1,null,null,1,{"$nulls":5},{"v":149.2849396320635,"d":"149"},{"v":13472.59766316902,"d":"13473"},{"v":0.519356495142832,"d":"0.52"},{"v":215.43129118711354,"d":"215"},{"v":1492.849396320635,"d":"1493"},{"v":1708.2806875077486,"d":"1708"},{"v":0.017082806875077485,"d":"0.02"},{"v":0.017082806875077485,"d":"0.017"},{"$nulls":9},32,2.9,null,{"v":0.007,"d":"0.007 "},{"v":26.200000000000003,"d":"26.2"},{"v":13472.59766316902,"d":"13473"},{"v":0.1,"d":"0.1 "},{"v":0.024726893091101043,"d":"0.0247 "},{"v":0.02971143987431029,"d":"0.0297 "},{"v":0.0289580671963084,"d":"0.0290 "},{"v":0.029061448277949046,"d":"0.0291 "},{"v":0.02904706574249262,"d":"0.0290 "},{"v":0.02904906286303538,"d":"0.0290 "},{"v":0.029048785474941045,"d":"0.0290 "},{"v":0.029048824001074405,"d":"0.0290 "},{"v":0.029048818650194017,"d":"0.0290 "},{"v":0.02904881939337528,"d":"0.02905 "}]
[{"$nulls":17},"Ringleitungsabschnitt","R4",32,"Z5",8,8.8,{"v":5,"d":"5.0"},{"$nulls":3},1,{"$nulls":5},{"v":48.33789736078645,"d":"48"},{"v":7057.074966421866,"d":"7057"},{"v":0.2720438784081501,"d":"0.27"},{"v":11.082987344235008,"d":"11"},{"v":241.68948680393225,"d":"242"},{"v":252.77247414816725,"d":"253"},{"v":2.5277247414816724E-3,"d":"0.00"},{"v":0.01961053161655916,"d":"0.020"},{"$nulls":9},32,2.9,null,{"v":0.007,"d":"0.007 "},{"v":26.200000000000003,"d":"26.2"},{"v":7057.074966421866,"d":"7057"},{"v":0.1,"d":"0.1 "},{"v":0.029280619702122652,"d":"0.0293 "},{"v":0.035135631301453314,"d":"0.0351 "},{"v":0.03415054933610639,"d":"0.0342 "},{"v":0.034301267332560316,"d":"0.0343 "},{"v":0.034277857555934356,"d":"0.0343 "},{"v":0.03428148515500421,"d":"0.0343 "},{"v":0.034280922816319934,"d":"0.0343 "},{"v":0.034281009983371524,"d":"0.0343 "},{"v":0.034280996471655265,"d":"0.0343 "},{"v":0.03428099856609609,"d":"0.03428 "}]
[{"$nulls":17},"Ringleitungsabschnitt","R3",32,"Z3",0.8,0.8,{"v":10,"d":"10.0"},1,null,1,{"$nulls":6},{"v":0.8608506751870324,"d":"1"},{"v":641.5522696747151,"d":"642"},{"v":0.02473126167346819,"d":"0.02"},{"v":0.7938227849865295,"d":"1"},{"v":8.608506751870324,"d":"9"},{"v":9.402329536856854,"d":"9"},{"v":9.4023295368568543E-5,"d":"0.00"},{"v":0.019704554911927727,"d":"0.020"},{"$nulls":9},32,2.9,null,{"v":0.007,"d":"0.007 "},{"v":26.200000000000003,"d":"26.2"},{"v":641.5522696747151,"d":"642"},{"v":0.1,"d":"0.1 "},{"v":0.06888629862600566,"d":"0.0689 "},{"v":0.07509952577076082,"d":"0.0751 "},{"v":0.07358664213623453,"d":"0.0736 "},{"v":0.07393899255860355,"d":"0.0739 "},{"v":0.07385605877433825,"d":"0.0739 "},{"v":0.0738755308976868,"d":"0.0739 "},{"v":0.07387095635401603,"d":"0.0739 "},{"v":0.07387203089480913,"d":"0.0739 "},{"v":0.07387177848165977,"d":"0.0739 "},{"v":0.0738718377738877,"d":"0.07387 "}]
[{"$nulls":22},0,{"$nulls":10},0,0,{"v":0,"d":"0.00"},0,0,0,{"v":0,"d":"0.00"},{"v":0,"d":"0.000"},{"$nulls":9},0,0,null,{"v":0.007,"d":"0.007 "},{"v":0,"d":"0.0"},0,{"v":0.1,"d":"0.1 "},{"$error":"#DIV/0!"},{"$error":"#DIV/0!"},{"$error":"#DIV/0!"},{"$error":"#DIV/0!"},{"$error":"#DIV/0!"},{"$error":"#DIV/0!"},{"$error":"#DIV/0!"},{"$error":"#DIV/0!"},{"$error":"#DIV/0!"},{"$error":"#DIV/0!"}]
[{"$nulls":22},0,{"$nulls":10},0,0,{"v":0,"d":"0.00"},0,0,0,{"v":0,"d":"0.00"},{"v":0,"d":"0.000"},{"$nulls":9},0,0,null,{"v":0.007,"d":"0.007 "},{"v":0,"d":"0.0"},0,{"v":0.1,"d":"0.1 "},{"$error":"#DIV/0!"},{"$error":"#DIV/0!"},{"$error":"#DIV/0!"},{"$error":"#DIV/0!"},{"$error":"#DIV/0!"},{"$error":"#DIV/0!"},{"$error":"#DIV/0!"},{"$error":"#DIV/0!"},{"$error":"#DIV/0!"},{"$error":"#DIV/0!"}]
[{"$nulls":22},0,{"$nulls":10},0,0,{"v":0,"d":"0.00"},0,0,0,{"v":0,"d":"0.00"},{"v":0,"d":"0.000"},{"$nulls":9},0,0,null,{"v":0.007,"d":"0.007 "},{"v":0,"d":"0.0"},0,{"v":0.1,"d":"0.1 "},{"$error":"#DIV/0!"},{"$error":"#DIV/0!"},{"$error":"#DIV/0!"},{"$error":"#DIV/0!"},{"$error":"#DIV/0!"},{"$error":"#DIV/0!"},{"$error":"#DIV/0!"},{"$error":"#DIV/0!"},{"$error":"#DIV/0!"},{"$error":"#DIV/0!"}]
[{"$nulls":22},0,{"$nulls":10},0,0,{"v":0,"d":"0.00"},0,0,0,{"v":0,"d":"0.00"},{"v":0,"d":"0.000"},{"$nulls":9},0,0,null,{"v":0.007,"d":"0.007 "},{"v":0,"d":"0.0"},0,{"v":0.1,"d":"0.1 "},{"$error":"#DIV/0!"},{"$error":"#DIV/0!"},{"$error":"#DIV/0!"},{"$error":"#DIV/0!"},{"$error":"#DIV/0!"},{"$error":"#DIV/0!"},{"$error":"#DIV/0!"},{"$error":"#DIV/0!"},{"$error":"#DIV/0!"},{"$error":"#DIV/0!"}]
[{"$nulls":22},0,{"$nulls":10},0,0,{"v":0,"d":"0.00"},0,0,0,{"v":0,"d":"0.00"},{"v":0,"d":"0.000"},{"$nulls":9},0,0,null,{"v":0.007,"d":"0.007 "},{"v":0,"d":"0.0"},0,{"v":0.1,"d":"0.1 "},{"$error":"#DIV/0!"},{"$error":"#DIV/0!"},{"$error":"#DIV/0!"},{"$error":"#DIV/0!"},{"$error":"#DIV/0!"},{"$error":"#DIV/0!"},{"$error":"#DIV/0!"},{"$error":"#DIV/0!"},{"$error":"#DIV/0!"},{"$error":"#DIV/0!"}]
[{"$nulls":22},0,{"$nulls":10},0,0,{"v":0,"d":"0.00"},0,0,0,{"v":0,"d":"0.00"},{"v":0,"d":"0.000"},{"$nulls":9},0,0,null,{"v":0.007,"d":"0.007 "},{"v":0,"d":"0.0"},0,{"v":0.1,"d":"0.1 "},{"$error":"#DIV/0!"},{"$error":"#DIV/0!"},{"$error":"#DIV/0!"},{"$error":"#DIV/0!"},{"$error":"#DIV/0!"},{"$error":"#DIV/0!"},{"$error":"#DIV/0!"},{"$error":"#DIV/0!"},{"$error":"#DIV/0!"},{"$error":"#DIV/0!"}]
[{"$nulls":22},0,{"$nulls":10},0,0,{"v":0,"d":"0.00"},0,0,0,{"v":0,"d":"0.00"},{"v":0,"d":"0.000"},{"$nulls":9},0,0,null,{"v":0.007,"d":"0.007 "},{"v":0,"d":"0.0"},0,{"v":0.1,"d":"0.1 "},{"$error":"#DIV/0!"},{"$error":"#DIV/0!"},{"$error":"#DIV/0!"},{"$error":"#DIV/0!"},{"$error":"#DIV/0!"},{"$error":"#DIV/0!"},{"$error":"#DIV/0!"},{"$error":"#DIV/0!"},{"$error":"#DIV/0!"},{"$error":"#DIV/0!"}]
[{"$nulls":22},{"$f":"IF(OR(T46=0,V45=0),V45,V45+W46)","v":0},{"$nulls":10},0,0,{"v":0,"d":"0.00"},0,0,0,{"v":0,"d":"0.00"},{"v":0,"d":"0.000"},{"$nulls":9},0,0,null,{"v":0.007,"d":"0.007 "},{"v":0,"d":"0.0"},0,{"v":0.1,"d":"0.1 "},{"$error":"#DIV/0!"},{"$error":"#DIV/0!"},{"$error":"#DIV/0!"},{"$error":"#DIV/0!"},{"$error":"#DIV/0!"},{"$error":"#DIV/0!"},{"$error":"#DIV/0!"},{"$error":"#DIV/0!"},{"$error":"#DIV/0!"},{"$error":"#DIV/0!"}]
[{"$nulls":36},{"$f":"SUM(AK34:AK45)","v":{"v":227.3081013163351,"d":"227"}},{"$f":"SUM(AL34:AL45)","v":{"v":1743.1473898764377,"d":"1743"}},{"$f":"SUM(AM33:AM45)","v":{"v":1970.4554911927726,"d":"1970"}},{"$f":"SUM(AN34:AN45)","v":{"v":0.019704554911927727,"d":"0.020"}}]
[]
[{"$nulls":53},"SDR 11",null,null,40]
[{"$nulls":33},{"$f":"HLOOKUP('REHAU RAUPEX'!S10,Sprachen!A1:T99,36,0)","v":"Der hydraulische Nullpunkt ist gefunden, wenn die Druckverluste gleich sind."},{"$nulls":19},20,1.9,null,63,{"$nulls":4},"Dichteberechnung Wasser"]
[{"$nulls":39},{"$f":"SUM(AM20:AM31)","v":{"v":2005.758446834918,"d":"2006"}},{"$f":"SUM(AM34:AM45)","v":{"v":1970.4554911927726,"d":"1970"}},{"$nulls":12},25,2.3,{"$nulls":6},"si =",{"$f":"BM51/221.287","v":0.004519018288467013},"T",{"$f":"Ringleitung!Z9","v":20}]
[{"$nulls":53},32,2.9,null,"Wasserdichte:",null,{"$f":"Ringleitung!BM54","v":{"v":998.3611272485998,"d":"998.4"}},"[kg/m3]",null,"ta =",{"$f":"(BM50+273.15)/647.3","v":0.4528811988258922},"p",1]
[{"$nulls":33},{"$f":"HLOOKUP('REHAU RAUPEX'!S10,Sprachen!A1:T99,37,0)","v":"Druckverlust gemittelt [bar]"},{"$nulls":5},{"$f":"(AN32+AN46)/2","v":{"v":0.019881069690138455,"d":"0.020"}},{"$nulls":13},40,3.7,null,"Rohrrauhigkeit:",null,0.007,"[mm]",null,"gu =",{"$f":"370000000-312219900*(BK51^2)-199985*(BK51^-6)","v":282784428.864606}]
[{"$nulls":53},50,4.6,null,"kinematische Viskosität:",null,{"$f":"(1.78*10^-6)/(1+0.0337*Z9+0.000221*Z9^2)","v":{"v":1.0099863822060825E-6,"d":"1.0E-06"}},"[m2/s]",null,"gw =",{"$f":"BK52+((1.72*(BK52^2)+13629260000000000*(BK50-1.500705*BK51))^0.5)","v":641032782.6842351}]
[{"$nulls":53},63,5.8,{"$nulls":6},"kv =",{"$f":"0.417/(BK53^(1/3.4))-0.0001139706+0.00009949927*BK51+((0.6537154-BK51)^2)*(0.00007241165+((0.6537154-BK51)^8)*0.7676621)-0.00000000001052358*(62.5+13.10268*BK50+(BK50^2))/(0.000015108+(BK51^11))","v":{"v":0.001001641563064376,"d":"0.00100164"}},"Dichte",{"$f":"1/BK54","v":{"v":998.3611272485998,"d":"998.4 kg/m3"}}]
[{"$nulls":53},75,6.8]
[{"$nulls":53},90,8.2]
[{"$nulls":53},110,{"v":10,"d":"10.0"}]
[{"$nulls":53},160,14.6]

{"sheet":"Strangleitung","index":2,"n_rows":58,"n_cols":68,"rows_kept":58,"merged":[[2,10,2,13],[4,35,8,38],[6,22,6,28],[11,7,11,9],[12,7,12,9],[15,17,16,17],[15,18,16,18],[15,20,16,20],[18,36,18,37],[48,33,49,38]]}
[]
[]
[]
[]
[{"$nulls":17},{"$f":"HLOOKUP('REHAU RAUPEX'!S10,Sprachen!A1:T99,38,0)","v":"RAUPEX INDUSTRIEROHRSYSTEM - STRANGLEITUNGEN VORLAUF MEDIUM WASSER"},{"$nulls":17},{"$f":"HLOOKUP('REHAU RAUPEX'!S10,Sprachen!A1:T99,3,0)","v":"Bitte beachten Sie die\nHinweise in den\nNutzungsbedingungen"}]
[]
[{"$nulls":17},{"$f":"HLOOKUP('REHAU RAUPEX'!S10,Sprachen!A1:T99,9,0)","v":"Betrachtung Vorlauf"},{"$nulls":4},{"$f":"'REHAU RAUPEX'!B6","v":"… Benennung der Rohranlage"}]
[{"$nulls":17},{"$f":"HLOOKUP('REHAU RAUPEX'!S10,Sprachen!A1:T99,10,0)","v":"Gesamtdruckverlust im Vorlauf < 0,2 bar"}]
[{"$nulls":22},{"$f":"HLOOKUP('REHAU RAUPEX'!S10,Sprachen!A1:T99,11,0)","v":"Wassertemperatur:"},null,null,20,"[°C]"]
[]
[]
[]
[{"$nulls":56},"lamb0","lamb1","lamb2","lamb3","lamb4","lamb5","lamb6","lamb7","lamb8","lamb9","lamb10","Fehler"]
[]
[]
[{"$nulls":17},{"$f":"HLOOKUP('REHAU RAUPEX'!S10,Sprachen!A1:T99,39,0)","v":"STRANGLEITUNGEN erfassen, durch Leerzeilen sind gruppierte Teilbetrachtungen möglich."},{"$f":"HLOOKUP('REHAU RAUPEX'!S10,Sprachen!A1:T99,16,0)","v":"Teilstrecke"},{"$f":"HLOOKUP('REHAU RAUPEX'!S10,Sprachen!A1:T99,17,0)","v":"RAUPEX Rohr"},{"$f":"HLOOKUP('REHAU RAUPEX'!S10,Sprachen!A1:T99,18,0)","v":"Verbraucher"},{"$f":"HLOOKUP('REHAU RAUPEX'!S10,Sprachen!A1:T99,19,0)","v":"Volumen-\nstrom\nabgehend"},{"$f":"HLOOKUP('REHAU RAUPEX'!S10,Sprachen!A1:T99,20,0)","v":"Volumen-\nstrom\ngesamt"},{"$f":"HLOOKUP('REHAU RAUPEX'!S10,Sprachen!A1:T99,21,0)","v":"Rohr-\nlänge"},{"$f":"HLOOKUP('REHAU RAUPEX'!S10,Sprachen!A1:T99,22,0)","v":"Winkel 90°"},{"$f":"HLOOKUP('REHAU RAUPEX'!S10,Sprachen!A1:T99,23,0)","v":"Winkel 45°"},{"$f":"HLOOKUP('REHAU RAUPEX'!S10,Sprachen!A1:T99,24,0)","v":"T-Stück Abzweig"},{"$f":"HLOOKUP('REHAU RAUPEX'!S10,Sprachen!A1:T99,25,0)","v":"T-Stück Durchgang"},{"$f":"HLOOKUP('REHAU RAUPEX'!S10,Sprachen!A1:T99,26,0)","v":"T-Stück Verteilung"},{"$f":"HLOOKUP('REHAU RAUPEX'!S10,Sprachen!A1:T99,27,0)","v":"T-Stück Vereinigung"},{"$f":"HLOOKUP('REHAU RAUPEX'!S10,Sprachen!A1:T99,28,0)","v":"Redu-\nzierung"},"Absperr-schieber","Kugelhahn",{"$f":"HLOOKUP('REHAU RAUPEX'!S10,Sprachen!A1:T99,29,0)","v":"Rohr-\nreibung"},{"$f":"HLOOKUP('REHAU RAUPEX'!S10,Sprachen!A1:T99,30,0)","v":"Reynolds-\nzahl"},{"$f":"HLOOKUP('REHAU RAUPEX'!S10,Sprachen!A1:T99,31,0)","v":"Geschwin-\ndigkeit"},{"$f":"HLOOKUP('REHAU RAUPEX'!S10,Sprachen!A1:T99,32,0)","v":"Druckverlust Formteile"},{"$f":"HLOOKUP('REHAU RAUPEX'!S10,Sprachen!A1:T99,33,0)","v":"Druckverlust Rohr"},{"$f":"HLOOKUP('REHAU RAUPEX'!S10,Sprachen!A1:T99,34,0)","v":"Druckverlust Formteil + Rohr"},{"$f":"HLOOKUP('REHAU RAUPEX'!S10,Sprachen!A1:T99,34,0)","v":"Druckverlust Formteil + Rohr"},{"$f":"HLOOKUP('REHAU RAUPEX'!S10,Sprachen!A1:T99,35,0)","v":"Druckverlust Gruppierung kommuliert"}]
[{"$nulls":19},"SDR 11",null,"[l/min]","[l/min]","[m]",1.3,0.5,1.3,0.3,1.5,1.3,0.4,0.5,0.1,"[Pa/m]","Re","[m/s]","[Pa]","[Pa]","[Pa]","[bar]","[bar]"]
[]
[{"$nulls":50},"Rohrauswahl pro Zeile",null,null,"k=","di=","Re=","lamb0","lamb1","lamb2","lamb3","lamb4","lamb5","lamb6","lamb7","lamb8","lamb9","lamb10"]
[{"$nulls":17},"Rohrabschnitt","H1",32,"Z1",8,{"$f":"IF(OR(V21=0,V20=0),V20,V20+W21)","v":40},{"v":5,"d":"5.0"},{"$nulls":3},1,{"$nulls":5},{"$f":"IFERROR(BO20*$BG$51*(AJ20^2)/(AY20-2*AZ20)/2/10^-3,0)","v":{"v":694.85249287408,"d":"695"}},{"$f":"IFERROR(AJ20*(AY20-2*AZ20)/$BG$53/1000,0)","v":{"v":32077.613483735753,"d":"32078"}},{"$f":"IFERROR((W20/60)*4000/((AY20-2*AZ20)^2)/PI(),0)","v":{"v":1.2365630836734094,"d":"1.24"}},{"$f":"(Y20*$Y$17*($BG$51/2)*AJ20^2)+(Z20*$Z$17*($BG$51/2)*AJ20^2)+(AA20*$AA$17*($BG$51/2)*AJ20^2)+(AB20*$AB$17*($BG$51/2)*AJ20^2)+(AC20*$AC$17*($BG$51/2)*AJ20^2)+(AD20*$AD$17*($BG$51/2)*AJ20^2)+(AE20*$AE$17*($BG$51/2)*AJ20^2)+(AF20*$L$12*($BG$51/2)*AJ20^2)+(AG20*$L$13*($BG$51/2)*AJ20^2)","v":{"v":228.98734182303733,"d":"229"}},{"$f":"AH20*X20","v":{"v":3474.2624643704,"d":"3474"}},{"$f":"AK20+AL20","v":{"v":3703.249806193437,"d":"3703"}},{"$f":"(AK20+AL20)/100000","v":{"v":0.03703249806193437,"d":"0.04"}},{"$f":"IF(V20=0,0,IF(AO19=0,AN20,(AN20+AO19)))","v":{"v":0.03703249806193437,"d":"0.037"}},{"$nulls":9},{"$f":"T20","v":32},{"$f":"IFERROR(LOOKUP(AY20,$BB$49:$BC$58),0)","v":2.9},null,{"$f":"$BG$52","v":{"v":0.007,"d":"0.007 "}},{"$f":"AY20-AZ20-AZ20","v":{"v":26.200000000000003,"d":"26.2"}},{"$f":"AI20","v":{"v":32077.613483735753,"d":"32078"}},{"v":0.1,"d":"0.1 "},{"$f":"(-2*LOG(((BB20/BC20)/3.71)+(2.51/(BD20*(BE20)^0.5))))^(-2)","v":{"v":0.020459701236441332,"d":"0.0205 "}},{"$f":"(-2*LOG(((BB20/BC20)/3.71)+(2.51/(BD20*(BF20)^0.5))))^(-2)","v":{"v":0.024288387415353285,"d":"0.0243 "}},{"$f":"(-2*LOG(((BB20/BC20)/3.71)+(2.51/(BD20*(BG20)^0.5))))^(-2)","v":{"v":0.023800027160217042,"d":"0.0238 "}},{"$f":"(-2*LOG(((BB20/BC20)/3.71)+(2.51/(BD20*(BH20)^0.5))))^(-2)","v":{"v":0.023856816466915915,"d":"0.0239 "}},{"$f":"(-2*LOG(((BB20/BC20)/3.71)+(2.51/(BD20*(BI20)^0.5))))^(-2)","v":{"v":0.02385013885632106,"d":"0.0239 "}},{"$f":"(-2*LOG(((BB20/BC20)/3.71)+(2.51/(BD20*(BJ20)^0.5))))^(-2)","v":{"v":0.023850923026093162,"d":"0.0239 "}},{"$f":"(-2*LOG(((BB20/BC20)/3.71)+(2.51/(BD20*(BK20)^0.5))))^(-2)","v":{"v":0.023850830924838706,"d":"0.0239 "}},{"$f":"(-2*LOG(((BB20/BC20)/3.71)+(2.51/(BD20*(BL20)^0.5))))^(-2)","v":{"v":0.023850841741997145,"d":"0.0239 "}},{"$f":"(-2*LOG(((BB20/BC20)/3.71)+(2.51/(BD20*(BM20)^0.5))))^(-2)","v":{"v":0.02385084047153493,"d":"0.0239 "}},{"$f":"(-2*LOG(((BB20/BC20)/3.71)+(2.51/(BD20*(BN20)^0.5))))^(-2)","v":{"v":0.023850840620749148,"d":"0.02385 "}}]
[{"$nulls":17},"Rohrabschnitt","H2",32,"T1",16.8,32,{"v":5,"d":"5.0"},{"$nulls":4},1,{"$nulls":4},{"v":466.5300113923648,"d":"467"},{"v":25662.09078698861,"d":"25662"},{"v":0.9892504669387278,"d":"0.99"},{"v":732.7594938337198,"d":"733"},{"v":2332.6500569618242,"d":"2333"},{"$f":"AK21+AL21","v":{"v":3065.409550795544,"d":"3065"}},{"v":0.03065409550795544,"d":"0.03"},{"v":0.06768659356988982,"d":"0.068"},{"$nulls":9},32,2.9,null,{"v":0.007,"d":"0.007 "},{"v":26.200000000000003,"d":"26.2"},{"v":25662.09078698861,"d":"25662"},{"v":0.1,"d":"0.1 "},{"v":0.021390172609694447,"d":"0.0214 "},{"v":0.02551322452299066,"d":"0.0255 "},{"v":0.02496154052742091,"d":"0.0250 "},{"v":0.025028717604461435,"d":"0.0250 "},{"v":0.025020439917858798,"d":"0.0250 "},{"v":0.025021458424901267,"d":"0.0250 "},{"v":0.025021333082792606,"d":"0.0250 "},{"v":0.025021348507622044,"d":"0.0250 "},{"v":0.02502134660940913,"d":"0.0250 "},{"v":0.02502134684300725,"d":"0.02502 "}]
[{"$nulls":17},"Rohrabschnitt","R1",32,"Z2",8,15.2,{"v":10,"d":"10.0"},1,null,null,1,{"$nulls":5},{"v":125.24721743472955,"d":"125"},{"v":12189.493123819584,"d":"12189"},{"v":0.4698939717958955,"d":"0.47"},{"v":176.35078484931506,"d":"176"},{"v":1252.4721743472955,"d":"1252"},{"v":1428.8229591966106,"d":"1429"},{"v":0.014288229591966106,"d":"0.01"},{"v":0.08197482316185592,"d":"0.082"},{"$nulls":9},32,2.9,null,{"v":0.007,"d":"0.007 "},{"v":26.200000000000003,"d":"26.2"},{"v":12189.493123819584,"d":"12189"},{"v":0.1,"d":"0.1 "},{"v":0.025343788401633073,"d":"0.0253 "},{"v":0.030463274569158174,"d":"0.0305 "},{"v":0.02967598459702812,"d":"0.0297 "},{"v":0.029785907595601544,"d":"0.0298 "},{"v":0.02977034397352609,"d":"0.0298 "},{"v":0.02977254324014425,"d":"0.0298 "},{"v":0.029772232379331423,"d":"0.0298 "},{"v":0.02977227631699795,"d":"0.0298 "},{"v":0.02977227010672893,"d":"0.0298 "},{"v":0.02977227098450452,"d":"0.02977 "}]
[{"$nulls":17},"Rohrabschnitt","R2",32,"Z3",7.2,7.2,{"v":15,"d":"15.0"},1,null,1,{"$nulls":6},{"v":34.17572280362656,"d":"34"},{"v":5773.970427072438,"d":"5774"},{"v":0.22258135506121374,"d":"0.22"},{"v":64.2996455839089,"d":"64"},{"v":512.6358420543985,"d":"513"},{"v":576.9354876383074,"d":"577"},{"v":0.005769354876383075,"d":"0.01"},{"v":0.087744178038239,"d":"0.088"},{"$nulls":9},32,2.9,null,{"v":0.007,"d":"0.007 "},{"v":26.200000000000003,"d":"26.2"},{"v":5773.970427072438,"d":"5774"},{"v":0.1,"d":"0.1 "},{"v":0.031004013617042834,"d":"0.0310 "},{"v":0.037124247435796114,"d":"0.0371 "},{"v":0.036061483077111704,"d":"0.0361 "},{"v":0.03622952465192343,"d":"0.0362 "},{"v":0.03620254344001193,"d":"0.0362 "},{"v":0.036206865015028115,"d":"0.0362 "},{"v":0.0362061725573238,"d":"0.0362 "},{"v":0.03620628350472058,"d":"0.0362 "},{"v":0.036206265728257275,"d":"0.0362 "},{"v":0.036206268576473154,"d":"0.03621 "}]
[{"$nulls":22},0,{"$nulls":10},0,0,{"v":0,"d":"0.00"},0,0,0,{"v":0,"d":"0.00"},{"v":0,"d":"0.000"},{"$nulls":9},0,0,null,{"v":0.007,"d":"0.007 "},{"v":0,"d":"0.0"},0,{"v":0.1,"d":"0.1 "},{"$error":"#DIV/0!"},{"$error":"#DIV/0!"},{"$error":"#DIV/0!"},{"$error":"#DIV/0!"},{"$error":"#DIV/0!"},{"$error":"#DIV/0!"},{"$error":"#DIV/0!"},{"$error":"#DIV/0!"},{"$error":"#DIV/0!"},{"$error":"#DIV/0!"}]
[{"$nulls":17},"Stichleitung zu Z3","V1",32,"Z3",8,8,{"v":2,"d":"2.0"},{"$nulls":6},1,null,null,{"v":40.991021067595,"d":"41"},{"v":6415.522696747153,"d":"6416"},{"v":0.24731261673468194,"d":"0.25"},{"v":12.212658230561997,"d":"12"},{"v":81.98204213519,"d":"82"},{"v":94.194700365752,"d":"94"},{"v":0.00094194700365752,"d":"0.00"},{"v":0.00094194700365752,"d":"0.001"},{"$nulls":9},32,2.9,null,{"v":0.007,"d":"0.007 "},{"v":26.200000000000003,"d":"26.2"},{"v":6415.522696747153,"d":"6416"},{"v":0.1,"d":"0.1 "},{"v":0.030078386107023788,"d":"0.0301 "},{"v":0.036059998574821686,"d":"0.0361 "},{"v":0.03503832862395505,"d":"0.0350 "},{"v":0.03519710923015097,"d":"0.0352 "},{"v":0.03517205467034615,"d":"0.0352 "},{"v":0.035175998698979846,"d":"0.0352 "},{"v":0.03517537760606411,"d":"0.0352 "},{"v":0.035175475407986205,"d":"0.0352 "},{"v":0.0351754600072227,"d":"0.0352 "},{"v":0.03517546243236082,"d":"0.03518 "}]
[{"$nulls":22},0,{"$nulls":10},0,0,{"v":0,"d":"0.00"},0,{"$f":"AH26*X26","v":0},0,{"v":0,"d":"0.00"},{"v":0,"d":"0.000"},{"$nulls":9},0,0,null,{"v":0.007,"d":"0.007 "},{"v":0,"d":"0.0"},0,{"v":0.1,"d":"0.1 "},{"$f":"(-2*LOG(((BB26/BC26)/3.71)+(2.51/(BD26*(BE26)^0.5))))^(-2)","v":{"$error":"#DIV/0!"}},{"$f":"(-2*LOG(((BB26/BC26)/3.71)+(2.51/(BD26*(BF26)^0.5))))^(-2)","v":{"$error":"#DIV/0!"}},{"$f":"(-2*LOG(((BB26/BC26)/3.71)+(2.51/(BD26*(BG26)^0.5))))^(-2)","v":{"$error":"#DIV/0!"}},{"$f":"(-2*LOG(((BB26/BC26)/3.71)+(2.51/(BD26*(BH26)^0.5))))^(-2)","v":{"$error":"#DIV/0!"}},{"$f":"(-2*LOG(((BB26/BC26)/3.71)+(2.51/(BD26*(BI26)^0.5))))^(-2)","v":{"$error":"#DIV/0!"}},{"$f":"(-2*LOG(((BB26/BC26)/3.71)+(2.51/(BD26*(BJ26)^0.5))))^(-2)","v":{"$error":"#DIV/0!"}},{"$f":"(-2*LOG(((BB26/BC26)/3.71)+(2.51/(BD26*(BK26)^0.5))))^(-2)","v":{"$error":"#DIV/0!"}},{"$f":"(-2*LOG(((BB26/BC26)/3.71)+(2.51/(BD26*(BL26)^0.5))))^(-2)","v":{"$error":"#DIV/0!"}},{"$f":"(-2*LOG(((BB26/BC26)/3.71)+(2.51/(BD26*(BM26)^0.5))))^(-2)","v":{"$error":"#DIV/0!"}},{"$f":"(-2*LOG(((BB26/BC26)/3.71)+(2.51/(BD26*(BN26)^0.5))))^(-2)","v":{"$error":"#DIV/0!"}}]
[{"$nulls":22},0,{"$nulls":10},0,0,{"v":0,"d":"0.00"},0,0,0,{"v":0,"d":"0.00"},{"v":0,"d":"0.000"},{"$nulls":9},0,0,null,{"v":0.007,"d":"0.007 "},{"v":0,"d":"0.0"},0,{"v":0.1,"d":"0.1 "},{"$error":"#DIV/0!"},{"$error":"#DIV/0!"},{"$error":"#DIV/0!"},{"$error":"#DIV/0!"},{"$error":"#DIV/0!"},{"$error":"#DIV/0!"},{"$error":"#DIV/0!"},{"$error":"#DIV/0!"},{"$error":"#DIV/0!"},{"$error":"#DIV/0!"}]
[{"$nulls":22},0,{"$nulls":10},0,0,{"v":0,"d":"0.00"},0,0,0,{"v":0,"d":"0.00"},{"v":0,"d":"0.000"},{"$nulls":9},0,0,null,{"v":0.007,"d":"0.007 "},{"v":0,"d":"0.0"},0,{"v":0.1,"d":"0.1 "},{"$error":"#DIV/0!"},{"$error":"#DIV/0!"},{"$error":"#DIV/0!"},{"$error":"#DIV/0!"},{"$error":"#DIV/0!"},{"$error":"#DIV/0!"},{"$error":"#DIV/0!"},{"$error":"#DIV/0!"},{"$error":"#DIV/0!"},{"$error":"#DIV/0!"}]
[{"$nulls":22},0,{"$nulls":10},0,0,{"v":0,"d":"0.00"},0,{"$f":"AH29*X29","v":0},0,{"v":0,"d":"0.00"},{"v":0,"d":"0.000"},{"$nulls":9},0,0,null,{"v":0.007,"d":"0.007 "},{"v":0,"d":"0.0"},0,{"v":0.1,"d":"0.1 "},{"$error":"#DIV/0!"},{"$error":"#DIV/0!"},{"$error":"#DIV/0!"},{"$error":"#DIV/0!"},{"$error":"#DIV/0!"},{"$error":"#DIV/0!"},{"$error":"#DIV/0!"},{"$error":"#DIV/0!"},{"$error":"#DIV/0!"},{"$error":"#DIV/0!"}]
[{"$nulls":22},0,{"$nulls":10},0,0,{"v":0,"d":"0.00"},0,{"$f":"AH30*X30","v":0},0,{"v":0,"d":"0.00"},{"v":0,"d":"0.000"},{"$nulls":9},0,0,null,{"v":0.007,"d":"0.007 "},{"v":0,"d":"0.0"},0,{"v":0.1,"d":"0.1 "},{"$error":"#DIV/0!"},{"$error":"#DIV/0!"},{"$error":"#DIV/0!"},{"$error":"#DIV/0!"},{"$error":"#DIV/0!"},{"$error":"#DIV/0!"},{"$error":"#DIV/0!"},{"$error":"#DIV/0!"},{"$error":"#DIV/0!"},{"$error":"#DIV/0!"}]
[{"$nulls":22},0,{"$nulls":10},0,0,{"v":0,"d":"0.00"},0,0,0,{"v":0,"d":"0.00"},{"v":0,"d":"0.000"},{"$nulls":9},0,0,null,{"v":0.007,"d":"0.007 "},{"v":0,"d":"0.0"},0,{"v":0.1,"d":"0.1 "},{"$error":"#DIV/0!"},{"$error":"#DIV/0!"},{"$error":"#DIV/0!"},{"$error":"#DIV/0!"},{"$error":"#DIV/0!"},{"$error":"#DIV/0!"},{"$error":"#DIV/0!"},{"$error":"#DIV/0!"},{"$error":"#DIV/0!"},{"$error":"#DIV/0!"}]
[{"$nulls":22},0,{"$nulls":10},0,0,{"v":0,"d":"0.00"},0,0,0,{"v":0,"d":"0.00"},{"v":0,"d":"0.000"},{"$nulls":9},0,0,null,{"v":0.007,"d":"0.007 "},{"v":0,"d":"0.0"},0,{"v":0.1,"d":"0.1 "},{"$error":"#DIV/0!"},{"$error":"#DIV/0!"},{"$error":"#DIV/0!"},{"$error":"#DIV/0!"},{"$error":"#DIV/0!"},{"$error":"#DIV/0!"},{"$error":"#DIV/0!"},{"$error":"#DIV/0!"},{"$error":"#DIV/0!"},{"$error":"#DIV/0!"}]
[{"$nulls":22},{"$f":"IF(OR(V34=0,V33=0),V33,V33+W34)","v":0},{"$nulls":10},0,0,{"v":0,"d":"0.00"},0,0,0,{"v":0,"d":"0.00"},{"v":0,"d":"0.000"},{"$nulls":9},0,0,null,{"v":0.007,"d":"0.007 "},{"v":0,"d":"0.0"},0,{"v":0.1,"d":"0.1 "},{"$error":"#DIV/0!"},{"$error":"#DIV/0!"},{"$error":"#DIV/0!"},{"$error":"#DIV/0!"},{"$error":"#DIV/0!"},{"$error":"#DIV/0!"},{"$error":"#DIV/0!"},{"$error":"#DIV/0!"},{"$error":"#DIV/0!"},{"$error":"#DIV/0!"}]
[{"$nulls":22},0,{"$nulls":10},0,0,{"v":0,"d":"0.00"},0,0,0,{"v":0,"d":"0.00"},{"v":0,"d":"0.000"},{"$nulls":9},0,0,null,{"v":0.007,"d":"0.007 "},{"v":0,"d":"0.0"},0,{"v":0.1,"d":"0.1 "},{"$error":"#DIV/0!"},{"$error":"#DIV/0!"},{"$error":"#DIV/0!"},{"$error":"#DIV/0!"},{"$error":"#DIV/0!"},{"$error":"#DIV/0!"},{"$error":"#DIV/0!"},{"$error":"#DIV/0!"},{"$error":"#DIV/0!"},{"$error":"#DIV/0!"}]
[{"$nulls":22},0,{"$nulls":10},0,0,{"v":0,"d":"0.00"},0,0,0,{"v":0,"d":"0.00"},{"v":0,"d":"0.000"},{"$nulls":9},0,0,null,{"v":0.007,"d":"0.007 "},{"v":0,"d":"0.0"},0,{"v":0.1,"d":"0.1 "},{"$error":"#DIV/0!"},{"$error":"#DIV/0!"},{"$error":"#DIV/0!"},{"$error":"#DIV/0!"},{"$error":"#DIV/0!"},{"$error":"#DIV/0!"},{"$error":"#DIV/0!"},{"$error":"#DIV/0!"},{"$error":"#DIV/0!"},{"$error":"#DIV/0!"}]
[{"$nulls":22},0,{"$nulls":10},0,0,{"v":0,"d":"0.00"},0,0,0,{"v":0,"d":"0.00"},{"v":0,"d":"0.000"},{"$nulls":9},0,0,null,{"v":0.007,"d":"0.007 "},{"v":0,"d":"0.0"},0,{"v":0.1,"d":"0.1 "},{"$error":"#DIV/0!"},{"$error":"#DIV/0!"},{"$error":"#DIV/0!"},{"$error":"#DIV/0!"},{"$error":"#DIV/0!"},{"$error":"#DIV/0!"},{"$error":"#DIV/0!"},{"$error":"#DIV/0!"},{"$error":"#DIV/0!"},{"$error":"#DIV/0!"}]
[{"$nulls":22},0,{"$nulls":10},0,0,{"v":0,"d":"0.00"},0,0,0,{"v":0,"d":"0.00"},{"v":0,"d":"0.000"},{"$nulls":9},0,0,null,{"v":0.007,"d":"0.007 "},{"v":0,"d":"0.0"},0,{"v":0.1,"d":"0.1 "},{"$error":"#DIV/0!"},{"$error":"#DIV/0!"},{"$error":"#DIV/0!"},{"$error":"#DIV/0!"},{"$error":"#DIV/0!"},{"$error":"#DIV/0!"},{"$error":"#DIV/0!"},{"$error":"#DIV/0!"},{"$error":"#DIV/0!"},{"$error":"#DIV/0!"}]
[{"$nulls":22},0,{"$nulls":10},0,0,{"v":0,"d":"0.00"},0,{"$f":"AH38*X38","v":0},0,{"v":0,"d":"0.00"},{"v":0,"d":"0.000"},{"$nulls":9},0,0,null,{"v":0.007,"d":"0.007 "},{"v":0,"d":"0.0"},0,{"v":0.1,"d":"0.1 "},{"$f":"(-2*LOG(((BB38/BC38)/3.71)+(2.51/(BD38*(BE38)^0.5))))^(-2)","v":{"$error":"#DIV/0!"}},{"$f":"(-2*LOG(((BB38/BC38)/3.71)+(2.51/(BD38*(BF38)^0.5))))^(-2)","v":{"$error":"#DIV/0!"}},{"$f":"(-2*LOG(((BB38/BC38)/3.71)+(2.51/(BD38*(BG38)^0.5))))^(-2)","v":{"$error":"#DIV/0!"}},{"$f":"(-2*LOG(((BB38/BC38)/3.71)+(2.51/(BD38*(BH38)^0.5))))^(-2)","v":{"$error":"#DIV/0!"}},{"$f":"(-2*LOG(((BB38/BC38)/3.71)+(2.51/(BD38*(BI38)^0.5))))^(-2)","v":{"$error":"#DIV/0!"}},{"$f":"(-2*LOG(((BB38/BC38)/3.71)+(2.51/(BD38*(BJ38)^0.5))))^(-2)","v":{"$error":"#DIV/0!"}},{"$f":"(-2*LOG(((BB38/BC38)/3.71)+(2.51/(BD38*(BK38)^0.5))))^(-2)","v":{"$error":"#DIV/0!"}},{"$f":"(-2*LOG(((BB38/BC38)/3.71)+(2.51/(BD38*(BL38)^0.5))))^(-2)","v":{"$error":"#DIV/0!"}},{"$f":"(-2*LOG(((BB38/BC38)/3.71)+(2.51/(BD38*(BM38)^0.5))))^(-2)","v":{"$error":"#DIV/0!"}},{"$f":"(-2*LOG(((BB38/BC38)/3.71)+(2.51/(BD38*(BN38)^0.5))))^(-2)","v":{"$error":"#DIV/0!"}}]
[{"$nulls":22},0,{"$nulls":10},0,0,{"v":0,"d":"0.00"},0,0,0,{"v":0,"d":"0.00"},{"v":0,"d":"0.000"},{"$nulls":9},0,0,null,{"v":0.007,"d":"0.007 "},{"v":0,"d":"0.0"},0,{"v":0.1,"d":"0.1 "},{"$error":"#DIV/0!"},{"$error":"#DIV/0!"},{"$error":"#DIV/0!"},{"$error":"#DIV/0!"},{"$error":"#DIV/0!"},{"$error":"#DIV/0!"},{"$error":"#DIV/0!"},{"$error":"#DIV/0!"},{"$error":"#DIV/0!"},{"$error":"#DIV/0!"}]
[{"$nulls":22},0,{"$nulls":10},0,0,{"v":0,"d":"0.00"},0,{"$f":"AH40*X40","v":0},0,{"v":0,"d":"0.00"},{"v":0,"d":"0.000"},{"$nulls":9},0,0,null,{"v":0.007,"d":"0.007 "},{"v":0,"d":"0.0"},0,{"v":0.1,"d":"0.1 "},{"$error":"#DIV/0!"},{"$error":"#DIV/0!"},{"$error":"#DIV/0!"},{"$error":"#DIV/0!"},{"$error":"#DIV/0!"},{"$error":"#DIV/0!"},{"$error":"#DIV/0!"},{"$error":"#DIV/0!"},{"$error":"#DIV/0!"},{"$error":"#DIV/0!"}]
[{"$nulls":22},0,{"$nulls":10},0,0,{"v":0,"d":"0.00"},0,0,0,{"v":0,"d":"0.00"},{"v":0,"d":"0.000"},{"$nulls":9},0,0,null,{"v":0.007,"d":"0.007 "},{"v":0,"d":"0.0"},0,{"v":0.1,"d":"0.1 "},{"$error":"#DIV/0!"},{"$error":"#DIV/0!"},{"$error":"#DIV/0!"},{"$error":"#DIV/0!"},{"$error":"#DIV/0!"},{"$error":"#DIV/0!"},{"$error":"#DIV/0!"},{"$error":"#DIV/0!"},{"$error":"#DIV/0!"},{"$error":"#DIV/0!"}]
[{"$nulls":22},0,{"$nulls":10},0,0,{"v":0,"d":"0.00"},0,{"$f":"AH42*X42","v":0},0,{"v":0,"d":"0.00"},{"v":0,"d":"0.000"},{"$nulls":9},0,0,null,{"v":0.007,"d":"0.007 "},{"v":0,"d":"0.0"},0,{"v":0.1,"d":"0.1 "},{"$error":"#DIV/0!"},{"$error":"#DIV/0!"},{"$error":"#DIV/0!"},{"$error":"#DIV/0!"},{"$error":"#DIV/0!"},{"$error":"#DIV/0!"},{"$error":"#DIV/0!"},{"$error":"#DIV/0!"},{"$error":"#DIV/0!"},{"$error":"#DIV/0!"}]
[{"$nulls":22},0,{"$nulls":10},0,0,{"v":0,"d":"0.00"},0,0,0,{"v":0,"d":"0.00"},{"v":0,"d":"0.000"},{"$nulls":9},0,0,null,{"v":0.007,"d":"0.007 "},{"v":0,"d":"0.0"},0,{"v":0.1,"d":"0.1 "},{"$error":"#DIV/0!"},{"$error":"#DIV/0!"},{"$error":"#DIV/0!"},{"$error":"#DIV/0!"},{"$error":"#DIV/0!"},{"$error":"#DIV/0!"},{"$error":"#DIV/0!"},{"$error":"#DIV/0!"},{"$error":"#DIV/0!"},{"$error":"#DIV/0!"}]
[{"$nulls":22},0,{"$nulls":10},0,0,{"v":0,"d":"0.00"},0,{"$f":"AH44*X44","v":0},0,{"v":0,"d":"0.00"},{"v":0,"d":"0.000"},{"$nulls":9},0,0,null,{"v":0.007,"d":"0.007 "},{"v":0,"d":"0.0"},0,{"v":0.1,"d":"0.1 "},{"$f":"(-2*LOG(((BB44/BC44)/3.71)+(2.51/(BD44*(BE44)^0.5))))^(-2)","v":{"$error":"#DIV/0!"}},{"$f":"(-2*LOG(((BB44/BC44)/3.71)+(2.51/(BD44*(BF44)^0.5))))^(-2)","v":{"$error":"#DIV/0!"}},{"$f":"(-2*LOG(((BB44/BC44)/3.71)+(2.51/(BD44*(BG44)^0.5))))^(-2)","v":{"$error":"#DIV/0!"}},{"$f":"(-2*LOG(((BB44/BC44)/3.71)+(2.51/(BD44*(BH44)^0.5))))^(-2)","v":{"$error":"#DIV/0!"}},{"$f":"(-2*LOG(((BB44/BC44)/3.71)+(2.51/(BD44*(BI44)^0.5))))^(-2)","v":{"$error":"#DIV/0!"}},{"$f":"(-2*LOG(((BB44/BC44)/3.71)+(2.51/(BD44*(BJ44)^0.5))))^(-2)","v":{"$error":"#DIV/0!"}},{"$f":"(-2*LOG(((BB44/BC44)/3.71)+(2.51/(BD44*(BK44)^0.5))))^(-2)","v":{"$error":"#DIV/0!"}},{"$f":"(-2*LOG(((BB44/BC44)/3.71)+(2.51/(BD44*(BL44)^0.5))))^(-2)","v":{"$error":"#DIV/0!"}},{"$f":"(-2*LOG(((BB44/BC44)/3.71)+(2.51/(BD44*(BM44)^0.5))))^(-2)","v":{"$error":"#DIV/0!"}},{"$f":"(-2*LOG(((BB44/BC44)/3.71)+(2.51/(BD44*(BN44)^0.5))))^(-2)","v":{"$error":"#DIV/0!"}}]
[{"$nulls":22},{"$f":"IF(OR(T46=0,V45=0),V45,V45+W46)","v":0},{"$nulls":10},0,0,{"v":0,"d":"0.00"},0,0,0,{"v":0,"d":"0.00"},{"v":0,"d":"0.000"},{"$nulls":9},0,0,null,{"v":0.007,"d":"0.007 "},{"v":0,"d":"0.0"},0,{"v":0.1,"d":"0.1 "},{"$error":"#DIV/0!"},{"$error":"#DIV/0!"},{"$error":"#DIV/0!"},{"$error":"#DIV/0!"},{"$error":"#DIV/0!"},{"$error":"#DIV/0!"},{"$error":"#DIV/0!"},{"$error":"#DIV/0!"},{"$error":"#DIV/0!"},{"$error":"#DIV/0!"}]
[{"$nulls":36},{"$f":"SUM(AK20:AK45)","v":{"v":1214.609924320543,"d":"1215"}},{"$f":"SUM(AL20:AL45)","v":{"v":7654.002579869108,"d":"7654"}},{"$f":"SUM(AM20:AM45)","v":{"v":8868.61250418965,"d":"8869"}},{"$f":"SUM(AN20:AN45)","v":{"v":0.08868612504189652,"d":"0.089"}}]
[]
[{"$nulls":53},"SDR 11",null,null,40,{"$nulls":4},"Dichteberechnung Wasser"]
[{"$nulls":33},{"$f":"HLOOKUP('REHAU RAUPEX'!S10,Sprachen!A1:T99,41,0)","v":"Der Benutzer entscheidet, welche Werte addiert am Ende der Spalten ausgegeben werden."},{"$nulls":19},20,1.9,null,63,{"$nulls":4},"si =",{"$f":"BM50/221.287","v":0.004519018288467013},"T",{"$f":"Strangleitung!Z9","v":20}]
[{"$nulls":53},25,2.3,{"$nulls":6},"ta =",{"$f":"(BM49+273.15)/647.3","v":0.4528811988258922},"p",1]
[{"$nulls":53},32,2.9,null,"Wasserdichte:",null,{"$f":"Strangleitung!BM53","v":{"v":998.3611272485998,"d":"998.4"}},"[kg/m3]",null,"gu =",{"$f":"370000000-312219900*(BK50^2)-199985*(BK50^-6)","v":282784428.864606}]
[{"$nulls":33},{"$f":"HLOOKUP('REHAU RAUPEX'!S10,Sprachen!A1:T99,42,0)","v":"Interpretiere dein Ergebnis auf der ersten Seite:"},{"$nulls":5},{"$f":"SUM(AN20:AN45)","v":{"v":0.08868612504189652,"d":"0.089"}},"[bar].",{"$nulls":12},40,3.7,null,"Rohrrauhigkeit:",null,0.007,"[mm]",null,"gw =",{"$f":"BK51+((1.72*(BK51^2)+13629260000000000*(BK49-1.500705*BK50))^0.5)","v":641032782.6842351}]
[{"$nulls":53},50,4.6,null,"kinematische Viskosität:",null,{"$f":"(1.78*10^-6)/(1+0.0337*Z9+0.000221*Z9^2)","v":{"v":1.0099863822060825E-6,"d":"1.0E-06"}},"[m2/s]",null,"kv =",{"$f":"0.417/(BK52^(1/3.4))-0.0001139706+0.00009949927*BK50+((0.6537154-BK50)^2)*(0.00007241165+((0.6537154-BK50)^8)*0.7676621)-0.00000000001052358*(62.5+13.10268*BK49+(BK49^2))/(0.000015108+(BK50^11))","v":{"v":0.001001641563064376,"d":"0.00100164"}},"Dichte",{"$f":"1/BK53","v":{"v":998.3611272485998,"d":"998.4 kg/m3"}}]
[{"$nulls":53},63,5.8]
[{"$nulls":53},75,6.8]
[{"$nulls":53},90,8.2]
[{"$nulls":53},110,{"v":10,"d":"10.0"}]
[{"$nulls":53},160,14.6]

{"sheet":"Anleitung","index":3,"n_rows":20,"n_cols":5,"rows_kept":20}
[]
[]
[]
[null,null,{"$f":"HLOOKUP('REHAU RAUPEX'!S10,Sprachen!A1:T99,52,0)","v":"ANLEITUNG BERECHNUNGSTOOL RAUPEX INDUSTRIEROHRSYSTEM"}]
[]
[null,null,{"$f":"HLOOKUP('REHAU RAUPEX'!S10,Sprachen!A1:T99,53,0)","v":"DRUCKVERLUSTBETRACHTUNG IM VORLAUF - MEDIUM WASSER"},null,"Version 01.2021          "]
[]
[]
[null,null,{"$f":"HLOOKUP('REHAU RAUPEX'!S10,Sprachen!A1:T99,54,0)","v":"Beispielanlage für den hydraulischen Vorlauf. \nBeginnend nehmen wir eine durchgehende Rohrdimension von 32 x 2,9 mm an."},{"$f":"HLOOKUP('REHAU RAUPEX'!S10,Sprachen!A1:T99,55,0)","v":"Die Rohrnetzskizze kann aus jeder anderen Anwendung heraus kopiert und auf den ersten drei Seiten im Berechnungstool eingefügt werden.\nAlternativ kann die Rohrnetzskizze auch durch Einzellinien erstellt werden."}]
[null,null,{"$f":"HLOOKUP('REHAU RAUPEX'!S10,Sprachen!A1:T99,56,0)","v":"Erstelle eine Skizze vom Vorlauf und beschrifte die Leitungsabschnitte und die Verbraucher."},{"$f":"HLOOKUP('REHAU RAUPEX'!S10,Sprachen!A1:T99,57,0)","v":"Die Beschriftungen könnten wie folgt gewählt werden:\n          Hx Hauptleitungsabschnitt\n          Rx Ringleitungsabschnitt\n          Vx Verteilleitungsabschnitt\n          Zx  Verbraucher (Schweiss-)Zange\n          Tx   T-Stück\nEin Leitungsabschnitt wird dadurch definiert, dass er nur am Anfang und am Ende eine Volumenstromteilung oder -zusammenführung aufzeigt (Ausnahmen siehe Skizze H1 und V1). Stichleitungen zum Einzelverbraucher und deren T-Stücke können bei Bedarf gekennzeichnet werden. "}]
[null,null,{"$f":"HLOOKUP('REHAU RAUPEX'!S10,Sprachen!A1:T99,58,0)","v":"Ermittlung hydraulischer Nullpunkt.\n(Dieser Schritt ist nur erforderlich, wenn die Anlage eine Ringleitung enthält.)"},{"$f":"HLOOKUP('REHAU RAUPEX'!S10,Sprachen!A1:T99,59,0)","v":"Als Zwischenziel wollen wir nun die ideale Verteilung des Volumenstrom in der Ringleitung ermitteln, welche sich in unserem Beispiel bei T1 beginnend nach rechts und links aufteilt und im hydraulischen Nullpunkt wieder vereint. Der hydraulische Nullpunkt kann ein T-Stück Tx oder ein Verbraucher Zx sein, wir vermuten den Punkt T2 und öffnen das Tabellenblatt Ringleitung.\nIm oberen Feld nun die links laufenden Ringleitungsabschnitte R1 und R2 und im unteren Feld die rechtslaufenden Ringleitungsabschnitte R5, R4 und R3 eintragen. Für jeden Ringleitungsabschnitt immer nur den Volumenstrom eingeben, welcher am Ende vom Verbraucher Zx abgenommen oder am T-Stück Tx abgegeben wird. Das obere und untere Feld endet in unserer Annahme jeweils im Punkt T2. Wir verteilen den Volumenstrom nun nach rechts und links im Punkt T2 bis die Seiten im Kreisdiagramm gleich groß sind. Nun kennen wir die ideale Verteilung des Volumenstrom in der Ringleitung für die weitere Berechnung."}]
[null,null,{"$f":"HLOOKUP('REHAU RAUPEX'!S10,Sprachen!A1:T99,60,0)","v":"Druckverlust hydraulischer Vorlauf (kritischer Pfad) der Beispielanlage."},{"$f":"HLOOKUP('REHAU RAUPEX'!S10,Sprachen!A1:T99,61,0)","v":"Vom Einspeisepunkt ausgehend, suchen wir nun den Verbraucher mit dem größten Druckverlust (auch kritischer Pfad genannt). In unserem Beispiel können wir die Rohrleitungsstrecke zwischen HIP und Z3 annehmen.\nDieser Rohrleitungsweg ist nicht immer gleich erkennbar. Häufig enthält dieser die größte Anzahl Verbraucher und/oder längsten Rohrleitungsweg. Auch kann dieser Weg durch Abschnitte einer Ringleitung führen, deshalb wurde die Ringleitung bereits berechnet. Wir öffnen das Tabellenblatt Strangleitung.\nNun tragen wir die Rohrleitungsabschnitte H1, H2, R1 und R2 bis Z3 in die Felder ein. Für jeden Rohrleitungsabschnitt immer nur den Volumenstrom eingeben, welcher am Ende vom Verbraucher Zx abgenommen oder am T-Stück Tx abgegeben wird. Um die Verteilleitung V1 zu berücksichtigen, muss diese nach einer Leerzeile separat erfasst werden. Der Druckverlust im hydraulischen Vorlauf ist ermittelt. Bitte bachten Sie hierzu auch die Hinweise in den Nutzungsbedingungen!"}]
[]
[null,null,{"$f":"HLOOKUP('REHAU RAUPEX'!S10,Sprachen!A1:T99,62,0)","v":"Regel Druckverlust < 0,2bar"},{"$f":"HLOOKUP('REHAU RAUPEX'!S10,Sprachen!A1:T99,63,0)","v":"Mit diesem Berechnungstool wird nur der Druckverlust im Vorlauf der Rohrleitungsanlage berechnet, welcher im Ergebnis < 0,2 bar sein muss. Wird der Rücklauf identisch ausgeführt, kann dieser Wert verdoppelt werden, um auf den Gesamtdruckverlust der Rohrleitungsanlage zu schließen, welcher im Ergebnis < 0,4 bar sein muss."}]
[null,null,{"$f":"HLOOKUP('REHAU RAUPEX'!S10,Sprachen!A1:T99,64,0)","v":"Regel zur Rohrdimension"},{"$f":"HLOOKUP('REHAU RAUPEX'!S10,Sprachen!A1:T99,65,0)","v":"Für die erste Berechnung ist eine durchgehende Rohrdimension von 32x2,9 mm anzunehmen. Stellt sich der geforderte Druckverlust < 0,2 bar ein, sind häufig keine weiteren Optimierungen erforderlich. Wird dieser Druckverlust überschritten, können folgende Optimierungen eine Lösungen darstellen."}]
[null,null,{"$f":"HLOOKUP('REHAU RAUPEX'!S10,Sprachen!A1:T99,66,0)","v":"Regel zur Optimierung mittels Dimensionswahl"},{"$f":"HLOOKUP('REHAU RAUPEX'!S10,Sprachen!A1:T99,67,0)","v":"Wird der geforderte Druckverlust < 0,2 bar überschritten, kann durch Vergößerung der Dimension der ersten Rohrabschnitte von der HIP ausgehend die Fließgeschwindigkeit und damit der Druckverlust wieder reduziert werden."}]
[null,null,{"$f":"HLOOKUP('REHAU RAUPEX'!S10,Sprachen!A1:T99,68,0)","v":"Regel zur Optimierung mittels Ringleitung"},{"$f":"HLOOKUP('REHAU RAUPEX'!S10,Sprachen!A1:T99,69,0)","v":"Wird der geforderte Druckverlust < 0,2 bar überschritten, kann häufig durch zusätzliche Ergänzung eines Ringleitungsschluss der Volumenstrom geteilt und der Druckverlust wieder reduziert werden."}]
[null,null,{"$f":"HLOOKUP('REHAU RAUPEX'!S10,Sprachen!A1:T99,70,0)","v":"Regel zur Optimierung mittels Position der HIP"},{"$f":"HLOOKUP('REHAU RAUPEX'!S10,Sprachen!A1:T99,71,0)","v":"Wird der geforderte Druckverlust < 0,2 bar überschritten, kann durch Positionsänderung der HIP im Mittelfeld der Rohrleitungsanlage der Druckverlust wieder reduziert werden. Von dieser Position aus können mehrere Stränge die Verbraucher bedienen, was bei gleicher Rohrdimension häufig hydraulisch sinnvoller ist."}]
[null,null,{"$f":"HLOOKUP('REHAU RAUPEX'!S10,Sprachen!A1:T99,72,0)","v":"Hinweisampel \nDruckverlust"},{"$f":"HLOOKUP('REHAU RAUPEX'!S10,Sprachen!A1:T99,73,0)","v":"Auf den Berechnungsblättern \"Ringleitung\" und \"Strangleitung\" wird unten rechts jeweils das Ergebnis zum Druckverlust angegeben. Übersteigt dieser Wert 0,2 bar, wird das Ergebnis ROT hinterlegt um auf diesen Fehler hinzuweisen."}]
[null,null,{"$f":"HLOOKUP('REHAU RAUPEX'!S10,Sprachen!A1:T99,74,0)","v":"Hinweisampel  Fließgeschwindigkeit"},{"$f":"HLOOKUP('REHAU RAUPEX'!S10,Sprachen!A1:T99,75,0)","v":"Auf den Berechnungsblättern \"Ringleitung\" und \"Strangleitung\" werden Fließgeschwindigkeit zwischen 1,5  bis 2,0 m/s automatisch ORANGE und Fließgeschwindigkeiten ab 2,0 m/s automatisch ROT hinterlegt. Dies kann als Hinweis und Aufforderung zur Prüfung verstanden werden."}]

{"sheet":"Nutzungsbedingungen","index":4,"n_rows":52,"n_cols":3,"rows_kept":52,"merged":[[7,2,16,57],[17,2,17,57],[18,2,24,57],[25,2,28,57],[30,2,34,57],[36,2,42,57],[43,2,44,57],[45,2,49,57],[51,2,55,57]]}
[]
[]
[]
[null,null,{"$f":"HLOOKUP('REHAU RAUPEX'!S10,Sprachen!A1:T99,43,0)","v":"NUTZUNGSBEDINGUNGEN"}]
[]
[null,null,{"$f":"HLOOKUP('REHAU RAUPEX'!S10,Sprachen!A1:T99,44,0)","v":"BERECHNUNGSTOOL RAUPEX INDUSTRIEROHRSYSTEM - MEDIUM WASSER"}]
[]
[null,null,{"$f":"HLOOKUP('REHAU RAUPEX'!S10,Sprachen!A1:T99,45,0)","v":"Mit diesem Berechnungstool können für die Anwendung Wassertransport, in Verbindung mit dem RAUPEX INDUSTRIEROHRSYSTEM der Rohrreihe SDR11 und Schiebehülsenverbindung, Druckverlustbetrachtungen innerhalb des RAUPEX-Systems durchgeführt werden. Bauseitige Komponenten außerhalb des RAUPEX-Systems können in die Betrachtung nicht einbezogen werden. Für die Betrachtung der jeweiligen Verlegeart, zum Beispiel im Ring oder im Strang, bietet das Berechnungstool unterschiedliche Tabellenblätter an, welche durch den Benutzer eigenverantwortlich auszuwählen, zu kombinieren und auf den jeweiligen Anwendungsfall anzuwenden sind. Die sich ergebenden Teilergebnisse werden durch den Benutzer interpretiert sowie das Gesamtergebnis abgeleitet."}]
{"$rows_empty":10}
[null,null,{"$f":"HLOOKUP('REHAU RAUPEX'!S10,Sprachen!A1:T99,46,0)","v":"Das Berechnungstool wendet unterschiedliche Formeln, Konstanten und Variablen an, welche nicht immer auf die jeweiligen Betriebsparameter angepasst werden können. Der sich hierbei ergebende Fehler wir durch die Kumulation der Teilabschnitte pro Tabellenzeile noch vergrößert. Auch können sich durch die Interpretation von Formteilen oder Fehlern in der Berechnung weitere Abweichungen ergeben."}]
[]
[]
[]
[]
[]
[]
[null,null,{"$f":"HLOOKUP('REHAU RAUPEX'!S10,Sprachen!A1:T99,47,0)","v":"Das Ergebnis ist damit ausschließlich eine ungefähre Näherung, für deren praktische Genauigkeit und Anwendbarkeit wir im Einzelfall keine Gewähr übernehmen können."}]
[]
[]
[]
[]
[null,null,{"$f":"HLOOKUP('REHAU RAUPEX'!S10,Sprachen!A1:T99,48,0)","v":"Natürlich sind wir steht‘s bemüht dieses Berechnungstool zu verbessern und bitten in diesem Zusammenhang um Ihre Rückmeldung aus der praktischen Anwendung sowie der Übereinstimmung mit Anlagen im Betrieb. Aktualisierte Versionen werden über unsere Homepage als Download zur Verfügung gestellt, somit prüfen Sie bitte bei Nutzung die Aktualität."}]
[]
[]
[]
[]
[]
[null,null,{"$f":"HLOOKUP('REHAU RAUPEX'!S10,Sprachen!A1:T99,49,0)","v":"Alle Daten innerhalb dieser Webseite/Software sind urheberrechtlich geschützt und dürfen nicht ohne Zustimmung der Rechteinhaber verwendet werden. Die durch das Urheberrecht begründeten Rechte, insbesondere die der Übersetzung, des Nachdruckes, der Entnahme von Abbildungen, der Funksendungen, der Wiedergabe auf fotomechanischem oder ähnlichem Wege und der Speicherung in Datenverarbeitungsanlagen, bleibt vorbehalten."}]
{"$rows_empty":8}
[null,null,{"$f":"HLOOKUP('REHAU RAUPEX'!S10,Sprachen!A1:T99,50,0)","v":"Durch die Nutzung dieses Berechnungstools gelten die Liefer- und Zahlungsbedingungen der REHAU AG+Co als akzeptiert. Diese sind jederzeit abrufbar unter folgendem Link: \nwww.rehau.com/de-de/liefer-und-zahlungsbedingungen\n"}]
[]
[]
[]
[]
[]
[null,null,{"$f":"HLOOKUP('REHAU RAUPEX'!S10,Sprachen!A1:T99,51,0)","v":"Für den direkten Kontakt zu uns finden Sie folgend Anschrift, Telefonnummer und Webseite:\nREHAU AG+Co / Ytterbium 4 / D-91058 Erlangen / Tel. +49-9131-92-0 / Abteilung Industrierohrsysteme\nwww.rehau.com/de-de/industrierohrsystem"}]

{"sheet":"Sprachen","index":5,"n_rows":76,"n_cols":5,"rows_kept":76,"hidden":true}
["Deutsch","English","Español","Italiano","Chinese"]
["RAUPEX INDUSTRIEROHRSYSTEM - DRUCKVERLUSTBETRACHTUNG VORLAUF MEDIUM WASSER","RAUPEX INDUSTRIAL PIPING SYSTEM - PRESSURE LOSS OBSERVATION, FLOW, FLUID: WATER","SISTEMA TUBERIA INDUSTRIAL RAUPEX - VISUALIZACION PERDIDA DE CARGA PARA IDA FLUIDO AGUA","RAUPEX SISTEMA TUBI INDUSTRIALI - CALCOLO PERDITE DI CARICO FLUIDO DI PROCESSO ACQUA","RAUPEX工业管路系统 - 压力损失计算表 (流体: 水)"]
["Bitte beachten Sie die\nHinweise in den\nNutzungsbedingungen","Please note the\ninformation in our\nterms of use ","Tenga en cuenta la\ninformación en los\ntérminos de uso","Si prega di osservare\nle istruzioni nei termini\ndi utilizzo","请注意\n我们使用条款中的信息"]
["… Benennung der Rohranlage","… description of the pipe system","Calificación","Denominazione","有关管道系统的描述……"]
["Ergebnis:\nDer Gesamtdruckverlust im dargestellten Vorlauf beträgt … bar.","Result:\nThe total pressure loss in the flow shown is ... bar.","Resultado:\nLa pérdida total de carga en la impulsion viene dada por ... bar.","Risultato:\nLa perdita di carico totale in mandata è data da … bar.","结果（示例）:\n本次计算管段为供水管，所有供水管计算管段的流体总压力损失为……bar。\n"]
["… Platz für weitere Notizen.","... space for further notes.","... espacio para más comentarios.","… spazio per altre notizie.","…其它补充说明。"]
["Hinweis: Die Rohrnetzskizze kann aus aus jeder anderen Anwendung heraus kopiert und auf dieser Seite eingefügt werden.","Note: The pipe network sketch can be copied from any other application and inserted on this page.","Nota: El esquema de red de tuberías puede ser incluido de otras aplicaciones y pegarse en esta página.","Istruzioni: Lo schema della rete di tubazioni può essere da qualsiasi altra applicazione ed incollato in questa pagina.","注意: 管网示意图可以从其他任何应用程序复制，再插入本页面。"]
["RAUPEX INDUSTRIEROHRSYSTEM - RINGLEITUNG VORLAUF MEDIUM WASSER","RAUPEX INDUSTRIAL PIPING SYSTEM - RING MAIN, FLOW, FLUID: WATER","SISTEMA TUBERIA INDUSTRIAL RAUPEX - SISTEMA EN ANILLO PARA IDA FLUIDO AGUA","RAUPEX SISTEMA TUBI INDUSTRIALI - SISTEMA AD ANELLO FLUIDO DI PROCESSO ACQUA","RAUPEX工业管路系统 - 主环路部分 (流体: 水)"]
["Betrachtung Vorlauf","Observation Flow","Vista ida","Valutazione Mandata","观察流体："]
["Gesamtdruckverlust im Vorlauf < 0,2 bar","Total pressure loss, flow < 0,2 bar","Perdida de carga tota en ida < 0,2 bar","Perdita di carico totale in mandata<0,2 bar","流体总压力损失 < 0.2bar"]
["Wassertemperatur:","water temperature:","Temperatura Agua:","Temperatura dell'acqua:","水温:"]
["RINGLEITUNG LINKS","RING MAIN LEFT","Sistema en anillo izq.","CIRCUITO ANELLO DI SX","主环路左侧部分"]
["RINGLEITUNG RECHTS","RING MAIN RIGHT","Sistema en anillo dcha.","CIRCUITO ANELLO DI DX","主环路右侧部分"]
["Ringleitungsabschnitt","Ring main section","Sección sistema anillo ","Sezione sistema ad anello","主要环段"]
["RINGLEITUNG in beiden Fließrichtungen erfassen bis der theoretische hydraulische Nullpunkt definiert ist.","RING MAIN, captured in both flow directions, until the theoretical,hydraulic zero-point is defined, ","Introducir sistema en anillo en ambas direcciones hasta encontrar el punto cero teórico hidraúlico.","Regolare Luhgezza TUBO DELL'ANELLO in entrambe le direzioni di flusso fino a definire punto zero/nullo teorico.\n","主环路，在两个方向上进行流动，直到汇合至理论上定义的压力零点。"]
["Teilstrecke","section","Sección","Tratto","管段"]
["RAUPEX Rohr","RAUPEX pipe","Tubo RAUPEX","Tubo RAUPEX","RAUPEX管"]
["Verbraucher","consumer","Consumidor","Utilizzatore","使用点"]
["Volumen-\nstrom\nabgehend","volume\nflow\noutgoing","Volumen\nde flujo\nsaliente","Portata\nuscente","出口\n体积流量"]
["Volumen-\nstrom\ngesamt","volume\nflow\ntotal","Volumen\nde flujo\ntotal","Portata\nTotale","管段\n总体积流量"]
["Rohr-\nlänge","pipe\nlenght ","Longitud\ntubería","Lung-\nhezza\ndel tubo","管道\n长度"]
["Winkel 90°","elbow 90°","Codo 90º","Curva 90°","弯头90°"]
["Winkel 45°","elbow 45°","Codo 45º","Curva 45°","弯头45°"]
["T-Stück Abzweig","T-piece branch flow","Pieza en T derivación","Pezzo a T derivaz.","三通，分支流"]
["T-Stück Durchgang","T-piece through flow","Pieza en T paso","Pezzo a T passante","三通，直通流"]
["T-Stück Verteilung","T-piece flow splitting","Pieza en T distribución","Pezzo a T distribuz.","三通，分流"]
["T-Stück Vereinigung","T-piece flow joining","Pieza en T unificación","Pezzo a T confluenza","三通，合流"]
["Redu-\nzierung","reduc-\ntion","Reduc-\nción","Ridu-\nzione","变径"]
["Rohr-\nreibung","pipe\nfriction","Fricción\ntubería","Attriti\nTubo","管道比摩阻"]
["Reynolds-\nzahl","Reynolds\nnumber","Numero\nReynolds","Numero\nReynolds","雷诺数"]
["Geschwin-\ndigkeit","velocity","Velocidad","Velocità","流速"]
["Druckverlust Formteile","pressure loss fitting","Perdida de\ncarga\nconexión","Perdita carico connection","压力损失: \n管件"]
["Druckverlust Rohr","pressure loss pipe","Perdida de\ncarga\ntubería","Perdita tubo","压力损失:\n管道"]
["Druckverlust Formteil + Rohr","pressure loss pipe + fitting","Perdida conexión + tubería","Perdita connection + tubo","压力损失: \n管件+管道"]
["Druckverlust Gruppierung kommuliert","pressure loss grouped accumulated","Perdidad de carga acumulada","Perdite totali","累计压力损失"]
["Der hydraulische Nullpunkt ist gefunden, wenn die Druckverluste gleich sind.","The hydraulic zero-point is defined, when the pressure losses equal.","El punto cero hidraulico encontrado, cuando las perdidas de carga son iguales.","La perdita di carico di equilibrio è stata trovata, se le perdite di carico nei 2 tratti sono uguali.","如果两侧压力损失相等，则找到了压力零点。"]
["Druckverlust gemittelt [bar]","pressure loss averaged [bar]","Promedio perdida de carga [bar]","Perdita di carico media [bar]","平均压力损失[bar]"]
["RAUPEX INDUSTRIEROHRSYSTEM - STRANGLEITUNGEN VORLAUF MEDIUM WASSER","RAUPEX INDUSTRIAL PIPING SYSTEM - LINE MAIN, FLOW, FLUID: WATER","SISTEMA DE TUBERIA INDUSTRIAL RAUPEX -RAMIFICACION IDA FLUIDO AGUA","SISTEMA TUBI INDUSTRAILI RAUPEX- SISTEMA CON MANDATA IN DERIVAZIONE CON FLUIDO ACQUA","RAUPEX工业管道系统 - 主线部分 (流体: 水)"]
["STRANGLEITUNGEN erfassen, durch Leerzeilen sind gruppierte Teilbetrachtungen möglich.","LINE MAIN, captured, by using blank space, accumulated views on sections are possible.","Registrar RAMIFICACIONES, usando lineas vacias se puede visualizar secciones agrupadas.","LINEA IN DERIVAZIONE, sono possibili viste parziali raggruppate con righe vuote.","主线部分，可通过查看每段来确定。"]
["Strangabschnitt","Line main section ","Sección ramificación","Sezione line ain derivazione","主线管段"]
["Der Benutzer entscheidet, welche Werte addiert am Ende der Spalten ausgegeben werden.","The user decides which values are added together and output at the end of the columns.","El usuario decide qué valores deben agregarse al final de las columnas.","L'utente decide quali valori devono essere aggiunti alla fine delle colonne.","可以自行决定哪些值累加在一起，并输出在最后一列。"]
["Interpretiere dein Ergebnis auf der ersten Seite:","Interpret your result on the first page:","Interpreta tu resultado en la primera página:","Interpreta il tuo risultato sulla prima pagina:","请在第一页说明你的结果:"]
["NUTZUNGSBEDINGUNGEN","TERMS OF USE","Manua DE USO","CONDIZIONI D'USO","使用条款"]
["BERECHNUNGSTOOL RAUPEX INDUSTRIEROHRSYSTEM - MEDIUM WASSER","CALCULATION TOOL RAUPEX INDUSTRIAL PIPING SYSTEM - FLUID: WATER","PROGRAMA DE CALCULO TUBERIA INDUSTRIAL RAUPEX - FLUIDO AGUA","FOGLIO DI CALCOLO RAUPEX TUBI INDUSTRIALI CON FLUIDO ACQUA","RAUPEX工业管道系统计算工具 (流体: 水)"]
["Mit diesem Berechnungstool können für die Anwendung Wassertransport, in Verbindung mit dem RAUPEX INDUSTRIEROHRSYSTEM der Rohrreihe SDR11 und Schiebehülsenverbindung, Druckverlustbetrachtungen innerhalb des RAUPEX-Systems durchgeführt werden. Bauseitige Komponenten außerhalb des RAUPEX-Systems können in die Betrachtung nicht einbezogen werden. Für die Betrachtung der jeweiligen Verlegeart, zum Beispiel im Ring oder im Strang, bietet das Berechnungstool unterschiedliche Tabellenblätter an, welche durch den Benutzer eigenverantwortlich auszuwählen, zu kombinieren und auf den jeweiligen Anwendungsfall anzuwenden sind. Die sich ergebenden Teilergebnisse werden durch den Benutzer interpretiert sowie das Gesamtergebnis abgeleitet.","This calculation tool enables you to observe the pressure losses,for the fluid water, inside the RAUPEX systems, when using the RAUPEX INDUSTRIAL PIPING SYSTEM (SDR11 pipe) , in combination with the compression sleeve system. External components, outside the RAUPEX system, can not be included, in this observation. For the observation of the particular installation, e.g. ring or line main,this calculation tool offers different spreadsheets, which the user has to choose, or to combine, for his particular application, him having the sole responsibility. The displayed part results, have to be interpreted, and the overall result, derived, by the user.","Con esta herramienta de cálculo, para la aplicación de transporte de agua, en combinación con el SISTEMA DE TUBERÍA INDUSTRIAL RAUPEX de la serie de tuberías SDR11 y sistema de unión por medio del casquillo corredizo, se pueden realizar análisis de pérdida de carga dentro del sistema RAUPEX. Los componentes fuera del sistema RAUPEX no pueden considerarse. Para la consideración de los diferentes tipos de instalación, por ejemplo, en anillo o ramificación, la herramienta de cálculo ofrece diferentes hojas de cálculo, siendo el usuario responsable de seleccionar, combinar y aplicar a la aplicación necesaria. Los resultados parciales resultantes son interpretados por el usuario así como  el resultado general.","Con questo foglio di calcolo, per l'applicazione con fluido acqua, in relazione al RAUPEX SISTEMA TUBI INDUSTRAILI della serie di tubi SDR11 e con sistema di collegamento a manicotto inscindibile, è possibile eseguire analisi delle perdite di carico.  Altri  materiali o sistemi al di fuori del sistema RAUPEX non possono essere considerati. Per l'analisi della specifica tipologia di installazione, ad esempio nell'anello o in derivazione, lo strumento di calcolo offre diversi fogli di calcolo, che l'utente è responsabile di selezionare, utilizzare e applicare correttamente nella rispettiva applicazione. I risultati parziali  vengono interpretati e valutati dall'utente, stessa cosa per risultato complessivo. ","对于流体为水的RAUPEX工业管道系统(SDR11管道)，该计算工具允许您查看压力损失，同时也适用于使用收紧套环连接的系统。\n外部组件，非RAUPEX系统，不被此工具所涵盖。\n为了观察特定安装形式，例如环形或直线，此计算工具提供了不同的电子表格，用户必须为其特定的应用选择或组合使用这些表格，并由用户全权负责。\n显示的结果必须由用户来进一步解释，而整体结果则由用户最后导出。"]
["Das Berechnungstool wendet unterschiedliche Formeln, Konstanten und Variablen an, welche nicht immer auf die jeweiligen Betriebsparameter angepasst werden können. Der sich hierbei ergebende Fehler wir durch die Kumulation der Teilabschnitte pro Tabellenzeile noch vergrößert. Auch können sich durch die Interpretation von Formteilen oder Fehlern in der Berechnung weitere Abweichungen ergeben.","This calculation tool uses different formula, constants and variables, which are not always ajustable, to the particular operating factors.Resulting erros, in this connection, will increase, by the accumulation of part sections per table row. In consequence the interpretation of fittings or calculation errors, can result in additional deviation.","La herramienta de cálculo utiliza diferentes fórmulas, constantes y variables, que no siempre se pueden adaptar a los respectivos parámetros operativos. El error resultante se incrementa aún más por la comunicación de las subsecciones por línea de tabla. La interpretación de piezas moldeadas o errores en el cálculo también puede dar lugar a más desviaciones.","Lo strumento di calcolo utilizza diverse formule, costanti e variabili, che non possono sempre essere adattate ai rispettivi parametri operativi. L'errore risultante viene ulteriormente aumentato dalla commulazione delle sottosezioni per riga di tabella. L'interpretazione di parti stampate o errori nel calcolo può anche comportare ulteriori imprecisioni.","对于特定的工作参数，该计算工具使用了不同的计算公式、常量和变量，这此并不总是可以被调整的。\n由此产生的误差通过每一表格计算步骤的累积而进一步放大。表格的解释部分也可能产生进一步的差异或错误。"]
["Das Ergebnis ist damit ausschließlich eine ungefähre Näherung, für deren praktische Genauigkeit und Anwendbarkeit wir im Einzelfall keine Gewähr übernehmen können.","The result is solely an approximation. We assume no responsibility for it´s practical accuracy or applicability in particular cases.","Por lo tanto, el resultado es solo orientativo y en ningún caso asume la responsabilidad de los resultado precisos practicables.","Il risultato è quindi solo una indicazione di massima e approssimativa, quindi non possiamo garantire, l'accuratezza pratica ed esecutiva, dei singoli casi analizzati, e la relativa l'applicabilità.","该计算工具得到的只是一个近似的结果。我们无法保证在特定情况下的准确性和适用性。\n因此，结果仅供相关专业人员参考，我们不对其负责。"]
["Natürlich sind wir steht‘s bemüht dieses Berechnungstool zu verbessern und bitten in diesem Zusammenhang um Ihre Rückmeldung aus der praktischen Anwendung sowie der Übereinstimmung mit Anlagen im Betrieb. Aktualisierte Versionen werden über unsere Homepage als Download zur Verfügung gestellt, somit prüfen Sie bitte bei Nutzung die Aktualität.","Constant efforts are being made to improve this calculation tool. In this context, we would appreciate, your feedback, when using this tool, as well as approved results, confirmed by your operation system. Updated versions will be provided, as downloads, on our homepage. Please check and make sure you are using the latest updated version.","Por supuesto, siempre estamos tratando de mejorar esta herramienta de cálculo y solicitamos sus comentarios de la aplicación práctica, así como el acuerdo con los sistemas en funcionamiento. Las versiones actualizadas están disponibles para descargar desde nuestra página de internet. Por favor verifica si está utilizando la última versión.","Naturalmente, cerchiamo sempre di migliorare questo strumento di calcolo e chiediamo il tuo feedback dall'applicazione pratica e verifica con i sistemi in funzione. Versioni aggiornate sono disponibili per il download dalla nostra homepage, quindi controlla di essere sempre aggiornato con ultima versione.","当然，我们始终在努力改进这一计算工具。基于此，请您对该工具的实际使用情况进行反馈，我们将不胜感激。该工具的最新版本可通过我们的主页下载，因此请在使用时检查更新情况。"]
["Alle Daten innerhalb dieser Webseite/Software sind urheberrechtlich geschützt und dürfen nicht ohne Zustimmung der Rechteinhaber verwendet werden. Die durch das Urheberrecht begründeten Rechte, insbesondere die der Übersetzung, des Nachdruckes, der Entnahme von Abbildungen, der Funksendungen, der Wiedergabe auf fotomechanischem oder ähnlichem Wege und der Speicherung in Datenverarbeitungsanlagen, bleibt vorbehalten.","This calculation tool / website, and its data content, is protected by copyright, and only can be used with permission of the holder of rights. The laws and regulations justified by the copyright, especially translations, reproductions, usage of images, transmission, photomechanical reproduction or other forms of reproduction and the storage in data processing systems, reserves the right to do so.","Todos los datos de este sitio web / software están protegidos por derechos de autor y no pueden utilizarse sin el consentimiento del titular de los derechos. Se reservan los derechos basados en los derechos de autor, en particular los de traducción, reimpresión, toma de fotografías, emisiones de radio, reproducción por medios fotomecánicos o similares y almacenamiento en sistemas de procesamiento de datos.","Tutti i dati su questo sito Web / software sono protetti da copyright e non possono essere utilizzati senza il consenso del titolare dei diritti. I diritti basati sul diritto d'autore, in particolare quelli di traduzione, ristampa, ripresa di immagini, trasmissioni radio, riproduzione con mezzi fotomeccanici o simili e archiviazione nei sistemi di elaborazione dei dati, sono riservati.","本网站/软件内的所有数据均受版权保护，未经权利持有人同意，不得使用。版权所赋予的权利，特别是与翻译、复制、拍照、无线电广播、照相或类似的复制和储存在数据处理设施中有关的权利，将继续保留。"]
["Durch die Nutzung dieses Berechnungstools gelten die Liefer- und Zahlungsbedingungen der REHAU AG+Co als akzeptiert. Diese sind jederzeit abrufbar unter folgendem Link: \nwww.rehau.com/de-de/liefer-und-zahlungsbedingungen\n","By using this calculation tool, the REHAU AG+Co,terms of service are accepted. They are available at all times on the attached link:\nwww.rehau.com/de-de/liefer-und-zahlungsbedingungen","Al utilizar esta herramienta de cálculo, se aceptan las condiciones de entrega y pago de REHAU AG + Co. Se pueden consultar en cualquier momento en el siguiente enlace:\nwww.rehau.com/de-de/liefer-und-zahlungsbedingungen","Utilizzando questo strumento di calcolo, vengono accettate le condizioni di consegna e pagamento di REHAU AG + Co. Questi possono essere richiamati in qualsiasi momento al seguente link:\nwww.rehau.com/de-de/liefer-und-zahlungsbedingungen","使用该计算工具时，您将被视为已经接受REHAU的交货和付款条件。它们可在任何时候通过以下网址获取：\nwww.rehau.com/de-de/liefer-und-zahlungsbedingungen\n如您不同意，请即停止使用该计算工具。"]
["Für den direkten Kontakt zu uns finden Sie folgend Anschrift, Telefonnummer und Webseite:\nREHAU AG+Co / Ytterbium 4 / D-91058 Erlangen / Tel. +49-9131-92-0 / Abteilung Industrierohrsysteme\nwww.rehau.com/de-de/industrierohrsystem","To contact us please find the attached contact details: REHAU AG+Co / Ytterbium 4 / D-91058 Erlangen / Tel. +49-9131-92-0 Business Team Industrial Piping Systems\nwww.rehau.com/de-de/industrierohrsystem ","Para contactarnos directamente, encontrará la siguiente dirección, número de teléfono y sitio web:\r\nIndustrias REHA SA / Pol. Ind. Cami RAl, Miquel Servet 25/ E-08850 Gava / Tel. + 34-936353500 / Departamento de Sistemas de Tuberías Industriales\r, www.rehau.com/de-de/industrierohrsystem ","Per il contatto diretto con noi troverete il seguente indirizzo, numero di telefono e sito Web: REHAU AG + Co / Ytterbium 4 / D-91058 Erlangen / Tel. + 49-9131-92-0 / Dipartimento di sistemi di tubazioni industriali\nwww.rehau.com/de-de/industrierohrsystem","如需直接与我们联系，请参考以下联系方式： \nREHAU AG+Co，地址：Ytterbium 4, D-91058 Erlangen， 电话：+49-9131-92-0 Business Team Industrial Piping Systems\n网址：www.rehau.com/de-de/industrierohrsystem "]
["ANLEITUNG BERECHNUNGSTOOL RAUPEX INDUSTRIEROHRSYSTEM","MANUAL RAUPEX INDUSTRIAL PIPING SYSTEM","INSTRUCCIÓN CÁLCULO SISTEMA DE TUBERÍAS INDUSTRIALES RAUPEX","STRUMENTO DI CALCOLO MANUALE SISTEMA TUBI INDUSTRIALI RAUPEX","RAUPEX工业管道系统计算工具说明"]
["DRUCKVERLUSTBETRACHTUNG IM VORLAUF - MEDIUM WASSER","PRESSURE LOSS ASSESSMENT IN THE FLOW - FLUID WATER","VISTA PERDIDA DE CARGA EN IMPULSION - FLUIDO AGUA","VALUTAZIONE PERDITA DI CARICO IN MANDATA (FLUIDO ACQUA)","适用于流体介质 - 液体水"]
["Beispielanlage für den hydraulischen Vorlauf. \nBeginnend nehmen wir eine durchgehende Rohrdimension von 32 x 2,9 mm an.","Sample layout of the hydraulic flow. Starting with a continuous pipe dimension of 32 x 2,9 mm.","Ejemplo de circuito hidráulico para impulsion.\r\nInicios con un diámetro de tubo, continuo de diámetro 32x2,9 mm.","Esempio circuito idraulico in mandata.\nIniziamo con un diametro del tubo, continuo, diametro 32x2,9 mm.","水力布局示例。\n使用32 x 2,9管道进行连续计算。"]
["Die Rohrnetzskizze kann aus jeder anderen Anwendung heraus kopiert und auf den ersten drei Seiten im Berechnungstool eingefügt werden.\nAlternativ kann die Rohrnetzskizze auch durch Einzellinien erstellt werden.","The pipe layout can be copied out of other applications, and placed anywhere, on the first three pages, of this calculation tool. Alternatively you can sketch the pipe layout, using single lines. ","El esquema de red de tuberías se puede copiar desde cualquier otra aplicación y pegar en la hoja de cálculo en las primeras tres páginas.\r\nAlternativamente, el esquema de red de tuberías puede crearse utilizando líneas individuales de Excel .","Lo schema della rete di tubazioni può essere copiato da qualsiasi altra applicazione e incollato nello foglio di calcolo nelle prime tre pagine.\nIn alternativa, è possibile creare lo schema della rete di condotte utilizzando singole linee da excel.","管道布置图可以从其他应用程序复制，并放置在该计算工具前三页的任何地方。您也可以使用单线条自行绘制管道布置图。\n注意：示例为单个供水管，回水管需要另行计算。"]
["Erstelle eine Skizze vom Vorlauf und beschrifte die Leitungsabschnitte und die Verbraucher.","Generate a layout of the flow, marking the pipe sections and consumers.","Cree un esquema a partir de la impulsion  y etiqueta secciones y consumidores.","Crea uno schema  partendo dalla mandata, ed indica/quota ogni singolo tratto ed utilizzatore.","生成一个水流的分布图，并标注出各管段及使用点。"]
["Die Beschriftungen könnten wie folgt gewählt werden:\n          Hx Hauptleitungsabschnitt\n          Rx Ringleitungsabschnitt\n          Vx Verteilleitungsabschnitt\n          Zx  Verbraucher (Schweiss-)Zange\n          Tx   T-Stück\nEin Leitungsabschnitt wird dadurch definiert, dass er nur am Anfang und am Ende eine Volumenstromteilung oder -zusammenführung aufzeigt (Ausnahmen siehe Skizze H1 und V1). Stichleitungen zum Einzelverbraucher und deren T-Stücke können bei Bedarf gekennzeichnet werden. ","The markings could be chosen, for expample, as:\n          Hx = main pipe section\n          Rx = Ring main section\n          Vx = distribution pipe section\n          Zx = consumer (welding robot)\n          Tx = T-piece\nPer definition a pipe section only indicates a volume flow division or combination at its beginning or end (exceptions please refer to layout H1 and V1). Branch lines to single consumers and relating T-pieces can be marked as required.","La etiqueta se puede seleccionar de la siguiente manera:\r\n          Hx =Seccion prinicpal red\n          Rx =Seccion anillo\n          Vx = Seccion distribucion \n          Zx = consumidor (pinza de soldadura)\n          Tx = Pieza en T\nUna sección de tuberia se define por el hecho de que solo muestra una división o fusión de flujo de volumen al principio y al final (las excepciones se muestran en el esquema H1 y V1). Las derivaciones al consumidor individual y sus piezas en T se pueden marcar si es necesario.","Le quote possono essere scelte come segue:\n           Hx sezione della linea principale\n           Sezione anello Rx\n           Vx sezione della linea di distribuzione\n           Utilizzatore per consumo (saldatura) Zx\n           Tx pezzo a T.\nUna sezione di linea è definita dal fatto, che mostra solo una divisione della portata volumetrica o l'unione all'inizio e alla fine (eccezioni, vedere gli schizzi H1 e V1). Se necessario, è possibile contrassegnare le diramazioni per il singolo consumatore e i relativi pezzi a T.","可以使用各种标记来标注，例如：\n　　Hx =主要管段\n　　Rx =环路的主要管段\n　　Vx =支管段\n　　Zx =使用点(焊接机器人)\n　　Tx =三通\n　　每个定义的管段仅标示出分支的体积流量，或者它的头部或尾部的总量(请特别请参阅示例布局中的H1和V1)。供应单一使用点的支线以及相应三通可根据需要进行标注。"]
["Ermittlung hydraulischer Nullpunkt.\n(Dieser Schritt ist nur erforderlich, wenn die Anlage eine Ringleitung enthält.)","Requirement, if your layout, contains a ring main.","Este paso solo es necesario si el sistema contiene una sistema en anillo.","Questo passaggio è necessario solo se il sistema contiene un circuito ad anello.","仅当您的布置图中含有环路时才需要此步骤。"]
["Als Zwischenziel wollen wir nun die ideale Verteilung des Volumenstrom in der Ringleitung ermitteln, welche sich in unserem Beispiel bei T1 beginnend nach rechts und links aufteilt und im hydraulischen Nullpunkt wieder vereint. Der hydraulische Nullpunkt kann ein T-Stück Tx oder ein Verbraucher Zx sein, wir vermuten den Punkt T2 und öffnen das Tabellenblatt Ringleitung.\nIm oberen Feld nun die links laufenden Ringleitungsabschnitte R1 und R2 und im unteren Feld die rechtslaufenden Ringleitungsabschnitte R5, R4 und R3 eintragen. Für jeden Ringleitungsabschnitt immer nur den Volumenstrom eingeben, welcher am Ende vom Verbraucher Zx abgenommen oder am T-Stück Tx abgegeben wird. Das obere und untere Feld endet in unserer Annahme jeweils im Punkt T2. Wir verteilen den Volumenstrom nun nach rechts und links im Punkt T2 bis die Seiten im Kreisdiagramm gleich groß sind. Nun kennen wir die ideale Verteilung des Volumenstrom in der Ringleitung für die weitere Berechnung.","As goal post we want to determine the ideal disribution of the volume flow in the ring main, which begins to divide, at point T1, in our example, flowing to the left and right, and unites in the hydraulic zero-point. The hydraulic zero-point could be a t-piece (Tx) or a consumer (Zx), we assume it to be at point T2 and open spreadsheet ring main. Located in the top section rotating anticlockwise, please enter the ring main section R1 and R2 and located in the bottom section, rotating clockwise, please enter the ring main sections R5,R4 and R3. Please only enter the volume flow, per ring pipe section, which finally will be consumed by consumer Zx, or redistributed by T-piece Tx. Top and bottom section both respectively end at point T2. We distribute the volume flow now to the left and to the right at point T2, until both sites of the circular chart match. We now indentified the ideal distribution of the volume flow, in the ring main section, for further calculations.","Como objetivo intermedio, queremos determinar la distribución ideal del flujo de volumen para sistema en anillo, que en nuestro ejemplo comienza en T1 y se divide hacia la derecha e izquierda y se une nuevamente en el punto cero hidráulico. El punto cero hidráulico puede ser una pieza en T Tx o un consumidor Zx , sospechamos el punto T2 y abrimos la hoja de calculo del sistema en anillo. Ubicado en la sección superior que gira en sentido contrario al reloj, ingrese la sección principal del anillo R1 y R2 y ubicado en la sección inferior, que gira en sentido del reloj, ingrese las secciones principales del anillo R5, R4 y R3. Ingrese solo el flujo de volumen, por sección de tubería de anillo, que finalmente será consumido por el consumidor Zx, o redistribuido porPieza en T Tx. La sección superior y la inferior, ambas terminan en el punto T2 Distribuimos el flujo de volumen ahora a la izquierda y a la derecha en el punto T2, hasta que ambos sitios del gráfico circular coincidan. Ahora identificamos la distribución ideal del flujo de volumen, en la sección principal del anillo, para realizar más cálculos.","Come obiettivo intermedio, ora vogliamo determinare la distribuzione ideale delle portate volumetriche nel linea dell'anello, che nel nostro esempio inizia da T1 e si divide a destra e a sinistra e lo combina di nuovo nel punto zero idraulico. Il punto zero idraulico può essere una Tx T-pezzo o una Zx utilizzatore, assumiamo il punto T2 e apriamo il foglio della tabella della linea dell'anello.\nOra inserisci le sezioni del loop di sinistra R1 e R2 nel campo superiore e le sezioni del'anello di destra R5, R4 e R3 nella casella inferiore. Immettere la portata solo per ciascuna sezione della linea dell'anello, che alla fine viene accettata dall'utilizzatore Zx o rilasciata sul raccordo a T Tx. A nostro avviso, il campo superiore e quello inferiore terminano nel punto T2. Ora distribuiamo il flusso del volume a destra e sinistra nel punto T2 fino a quando le sezioni nel grafico a torta hanno le stesse dimensioni, uguali. Ora conosciamo la distribuzione ideale della portata nel circuito ad anello per ulteriori calcoli.","我们现在的目标是确定环线中体积流量的分流分布。在我们的例子中，环线在T1处分成了左右两部分。从环线的左侧到右侧，起点和终点的压力分别相等 ，形成了压力零点。压力零点可以是三通Tx或使用点Zx，这里我们假设为T2点，这样我们就能打开环线。在表格的上半部分，输入环的左侧主要环段R1和R2，在表格的下半部分，输入环的右侧主要环段R5, R4和R3。对于每个管段，仅输入最终由使用点Zx提取或在T件Tx处汇总的体积流量。表格上下两部分分别在在T2点结束。我们现在将T2点的的体积流量分配给左侧和右侧的T2，直到圆形饼图的两半大小相等为止。现在我们知道了环线中体积流量的理想分布，以便下一步计算。"]
["Druckverlust hydraulischer Vorlauf (kritischer Pfad) der Beispielanlage.","Pressure loss of the hydraulic flow (critical path) in the sample layout.","Pérdida de presión del flujo hidráulico (ruta crítica) en el diseño de ejemplo.","Perdita di carico in mandata (percorso critico) del sistema di esempio.","示例中的(最不利路径)水流压力损失。"]
["Vom Einspeisepunkt ausgehend, suchen wir nun den Verbraucher mit dem größten Druckverlust (auch kritischer Pfad genannt). In unserem Beispiel können wir die Rohrleitungsstrecke zwischen HIP und Z3 annehmen.\nDieser Rohrleitungsweg ist nicht immer gleich erkennbar. Häufig enthält dieser die größte Anzahl Verbraucher und/oder längsten Rohrleitungsweg. Auch kann dieser Weg durch Abschnitte einer Ringleitung führen, deshalb wurde die Ringleitung bereits berechnet. Wir öffnen das Tabellenblatt Strangleitung.\nNun tragen wir die Rohrleitungsabschnitte H1, H2, R1 und R2 bis Z3 in die Felder ein. Für jeden Rohrleitungsabschnitt immer nur den Volumenstrom eingeben, welcher am Ende vom Verbraucher Zx abgenommen oder am T-Stück Tx abgegeben wird. Um die Verteilleitung V1 zu berücksichtigen, muss diese nach einer Leerzeile separat erfasst werden. Der Druckverlust im hydraulischen Vorlauf ist ermittelt. Bitte bachten Sie hierzu auch die Hinweise in den Nutzungsbedingungen!","Starting from the supply point, we are trying to determine the consumer with the highest pressure loss (refered to as critical path). In our sample layout we can assume it to be the pipe section between the HIP and point Z3.The critical path is not always obvious.Often the critical path contains the highest number of consumers and/or the longest piping section. The critical part can cross parts of a ring main, that´s the reason the ring main has been calculated already.We now open the spread sheet line main. We enter pipe sections H1, H2, R1 and R2 to Z3. Please only enter the volume flow, per ring pipe section, which finally will be consumed by consumer Zx, or redistributed by T-piece Tx. To include the distribution pipe section V1, the value has to be entered separately after leaving a blank line. The pressure loss of the hydraulic flow is determined. Please note our terms of use!","Comenzando desde el punto de suministro, estamos tratando de determinar el consumidor con la mayor pérdida de presión (referido como ruta crítica). En nuestro diseño de muestra, podemos suponer que es la sección de tubería entre el HIP y el punto Z3. La ruta crítica no siempre es obvia. A menudo, la ruta crítica contiene el mayor número de consumidores y / o la sección de tubería más larga. La parte crítica puede cruzar partes de un anillo principal, esa es la razón por la cual el anillo principal ya se ha calculado. Ahora abrimos la línea principal de la hoja de cálculo. Entramos en las secciones de tubería H1, H2, R1 y R2 a Z3. Ingrese solo el flujo de volumen, por sección de tubería de anillo, que finalmente será consumido por el consumidor Zx, o redistribuido por pieza en T Tx. Para incluir la sección de tubería de distribución V1, el valor debe ingresarse por separado después de dejar una línea en blanco. Se determina la pérdida de presión del flujo hidráulico. ¡Tenga en cuenta nuestros términos de uso!","A partire dal punto di ingresso, ora stiamo cercando l'utilizzatore con la maggiore perdita di carico e (detto anche percorso critico). Nel nostro esempio, possiamo ipotizzare il percorso della rete tra HIP e Z3.\nQuesto percorso della rete non è sempre immediatamente identificabile. Spesso questo contiene il maggior numero di consumatori e / o il percorso più lungo della rete. Questo percorso può anche condurre attraverso sezioni di un anello, motivo per cui l'anello  è già stato calcolato. Apriamo il foglio di lavoro della linea di rete.\nOra inseriamo le sezioni di tubo H1, H2, R1 e da R2 a Z3 nei campi. Immettere solo portata volumetrica per ciascuna sezione della circuito/rete, che alla fine viene accettata dall'utilizzatore Zx o consegnata al raccordo a T Tx. Per tenere conto della linea di distribuzione V1, deve essere inserita separatamente dopo una linea vuota. Viene determinata la perdita di carico in mandata. Si prega di notare anche le informazioni ed i termini di utilizzo!","从起始点开始，我们正试图确定压力损失最高的使用点(参考最不利路径)。在我们的示例布局中，我们可以假设它是HIP和Z5使用点之间的管段。最不利路径并不总是显而易见的。通常最不利路径包含最多的使用点和/或最长的管段部分。最不利路径可以穿越主环路，这也是为什么我们会计算主环路的原因。现在我们可以打开主环路进行计算。\n我们现在来考虑管段H1、H2、R1、R2、Z3。对于每个管段，请只输入体积流量，对于环路部分，请输入最终需要考虑的用户点或者重新分配过的三通Tx。\n为了考虑分配管段V1，应当在空一行后再输入相应的值。\n最后确定流体的压力损失。\n请注意我们的使用条款!"]
["Regel Druckverlust < 0,2bar","Directory: Pressure loss < 0,2bar","Mandatorio: perdida de preion < 0,2bar","Regola perdita di carico <0,2bar","目录: 压力损失< 0.2bar"]
["Mit diesem Berechnungstool wird nur der Druckverlust im Vorlauf der Rohrleitungsanlage berechnet, welcher im Ergebnis < 0,2 bar sein muss. Wird der Rücklauf identisch ausgeführt, kann dieser Wert verdoppelt werden, um auf den Gesamtdruckverlust der Rohrleitungsanlage zu schließen, welcher im Ergebnis < 0,4 bar sein muss.","This calculation tool helpd you to calculate the pressure loss, in the flow, of your piping system, which should not exceed 0,2bar. If the return is installed identically your value has to be doubled in order to get the total pressure loss of your piping system, which should not exceed 0,4bar.","Esta herramienta de cálculo ayuda a calcular la pérdida de presión, en el flujo, de su sistema de tuberías, que no debe exceder los 0,2 bar. Si el retorno se instala de manera idéntica, su valor debe duplicarse para obtener la pérdida de presión total del sistema de tuberías, que no debe exceder los 0,4 bar.","Questo strumento di calcolo calcola solo la perdita di carico solo nella rete del sistema di tubazioni, che di conseguenza deve essere <0,2 bar. Se il ritorno viene eseguito in modo identico, questo valore può essere raddoppiato al fine di dedurre la perdita di pressione totale del sistema rete tubazioni, che di conseguenza deve essere <0,4 bar.","该计算工具可以帮助您计算压力损失。在您的管道系统中，供水管压力损失不应超过0.2bar。如果回水管情况相同，计算得到的压力损失值应当翻倍，这样才能使得管道系统供、回水管道的总压力损失不超过0.4bar。"]
["Regel zur Rohrdimension","Directory: Pipe dimension","Mandatorio: dimension tubo","Regola dimensione tubo","目录: 管道尺寸"]
["Für die erste Berechnung ist eine durchgehende Rohrdimension von 32x2,9 mm anzunehmen. Stellt sich der geforderte Druckverlust < 0,2 bar ein, sind häufig keine weiteren Optimierungen erforderlich. Wird dieser Druckverlust überschritten, können folgende Optimierungen eine Lösungen darstellen.","You are starting your calculations with the continuous pipe dimension of 32 x 2,9 mm. If you calculations result in the required pressure loss not exceeding 0,2bar, often no addtional optimisations are necessary. Should you exceed the required pressure loss, the following optimisation measures could present a soultion.","Se debe asumir una dimensión de tubería continua de 32x2,9 mm para el primer cálculo. Si la pérdida de presión requerida es <0.2 bar, a menudo no se necesitan más optimizaciones. Si se supera esta pérdida de presión, las siguientes optimizaciones pueden ser una solución.","Per un primo calcolo è necessario assumere un diametro del tubo continuo di 32x2,9 mm. Se la perdita di carico richiesta è <0,2 bar, spesso non sono necessarie ulteriori ottimizzazioni. Se questa perdita di pressione viene superata, le seguenti ottimizzazioni possono essere una soluzione.","你在使用32 x 2,9管道进行连续计算时，如果你计算出来的压力损失不超过允许的0.2Bar，那么通常不需要对管道进行额外优化。如果超出所要求的压力损失，那么可以考虑采取以下的优化措施。"]
["Regel zur Optimierung mittels Dimensionswahl","Directory: Optimisation via the pipe dimension ","Mandatorio: optimización mediante selección de dimensiones ","Regola per l'ottimizzazione mediante la selezione della dimensione/diametro.","目录: 通过管道尺寸进行优化"]
["Wird der geforderte Druckverlust < 0,2 bar überschritten, kann durch Vergößerung der Dimension der ersten Rohrabschnitte von der HIP ausgehend die Fließgeschwindigkeit und damit der Druckverlust wieder reduziert werden.","Should you exceed the required pressure loss of 0,2bar, you can minimize the flow velocity an hereby the pressure loss by upsizing your pipe dimension, pipe section by pipe section, starting from the HIP.","Si se excede la pérdida de presión requerida <0.2 bar, la velocidad de flujo y, por lo tanto, la pérdida de presión se pueden reducir nuevamente aumentando la dimensión de las primeras secciones de tubería desde el HIP. Para esto, el espacio espacial y el consentimiento en el proyecto deben estar disponibles.","Se viene superata la perdita di carico richiesta <0,2 bar, la portata e quindi la perdita di carcio e possono essere nuovamente ridotte aumentando il diametro del tubo nelle prime sezioni a partire dall'HIP. Per questo, lo spazio spaziale e il consenso nel progetto devono essere disponibili.","如果计算结果超过允许的压力损失0.2Bar，你可以从HIP开始，一段一段地考虑通过增大管道尺寸来减少管道内的流速，从而实现减少压力损失的目的。\n增大管道尺寸后需要更多的安装空间并需要得到项目负责人的批准。"]
["Regel zur Optimierung mittels Ringleitung","Directory: Optimisation via the ring main","Regla para la optimización usandoun sistema en anillo","Regola per l'ottimizzazione utilizzando una linea ad anello","目录: 通过主环路进行优化"]
["Wird der geforderte Druckverlust < 0,2 bar überschritten, kann häufig durch zusätzliche Ergänzung eines Ringleitungsschluss der Volumenstrom geteilt und der Druckverlust wieder reduziert werden.","Should you exceed the required pressure loss of 0,2bar, the volume flow can be divided and the pressure loss reduced, by short circuiting, and therefore creating a ring main, out of several line mains.","Si se excede la pérdida de presión requerida <0.2 bar, el flujo de volumen a menudo se puede dividir y la pérdida de presión se reduce nuevamente agregando una conexión de línea de anillo. Para esto, el espacio espacial y la aprobación deben estar disponibles en el proyecto.","Se viene superata la perdita di carico richiesta <0,2 bar, la portata può spesso essere suddivisa e la perdita di carcio e può essere nuovamente ridotta aggiungendo una connessione ad anello. Per questo, lo spazio e l'approvazione devono essere disponibili nel progetto.","如果计算结果超过允许的压力损失0.2Bar，你可以通过分流、缩短路径、创建环路、引出多个主管等方式，减少管道中的流量。同样地，这需要更多的安装空间并需要得到项目负责人的批准。"]
["Regel zur Optimierung mittels Position der HIP","Directory: Optimisation via positioning the HIP","Regla para la optimización utilizando la posición del HIP","Regola per l'ottimizzazione utilizzando la posizione dell'HIP","目录: 通过重新定位HIP来进行优化"]
["Wird der geforderte Druckverlust < 0,2 bar überschritten, kann durch Positionsänderung der HIP im Mittelfeld der Rohrleitungsanlage der Druckverlust wieder reduziert werden. Von dieser Position aus können mehrere Stränge die Verbraucher bedienen, was bei gleicher Rohrdimension häufig hydraulisch sinnvoller ist.","Should you exceed the required pressure loss of 0,2bar, the pressure loss can be reduced by positioning the HIP,in the centre of the piping system. By supplying consumers, from a central position, various line mains can supply consumers, using the same pipe dimensions, which looking at the hydraulics of the system is often the most sensible solution.","Si se excede la pérdida de presión requerida <0.2 bar, la pérdida de presión se puede reducir nuevamente cambiando la posición del HIP en el medio del sistema de tuberías. Desde esta posición, varias cadenas pueden servir a los consumidores, que a menudo es más sensible hidráulicamente para la misma dimensión de tubería. Para esto, el espacio espacial y la aprobación deben estar disponibles en el proyecto.","Se viene superata la perdita di carico richiesta <0,2 bar, la perdita di carico può essere nuovamente ridotta modificando la posizione dell'HIP  del sistema rete di tubazioni. Da questa posizione, diverse stringhe possono servire i consumatori, il che è spesso più sensato idraulicamente per la stessa dimensione del tubo. Per questo, lo spazio e l'approvazione devono essere disponibili nel progetto.","如果计算结果超过允许的压力损失0.2Bar，你可以通过将HIP重新定位于管道系统中央的方法来减少压力损失。此时供应给使用点时，从中央位置可以分出多个主管道来供水，这样仍可以使用相同的管径，并且这种方式通常来说更加合理。"]
["Hinweisampel \nDruckverlust","Color Indicator: pressure loss ","Semáforo\r\nPérdida de carga","Istruzione semafori perdita di carico","颜色提示: 压力损失"]
["Auf den Berechnungsblättern \"Ringleitung\" und \"Strangleitung\" wird unten rechts jeweils das Ergebnis zum Druckverlust angegeben. Übersteigt dieser Wert 0,2 bar, wird das Ergebnis ROT hinterlegt um auf diesen Fehler hinzuweisen.","The spread sheets \"ring main\" and \"line main\" provide the calculated pressure loss , in the bottom right corner. Should your result exceed 0,2bar, it will be highlighted in RED, to indicate an error. ","El resultado de la pérdida de presión se muestra en la esquina inferior derecha de las hojas de cálculo \"Sistema en anillo\" y \"sistema en serie\". Si este valor excede 0.2 bar, el resultado se almacena en ROJO para indicar este error.","Il risultato della perdita di carico è mostrato in basso a destra nei fogli di calcolo \"Anello\" e \"Derivazione\". Se questo valore supera 0,2 bar, il risultato viene evidenziato in ROSSO per indicare questo errore.","在计算表“主环路部分”和“主线部分”的右下角，均提供了压力损失总计值。如果它们的值超过了0.2 bar，它们将被标记为红色，以提示错误。"]
["Hinweisampel  Fließgeschwindigkeit","Color Indicator: velocity","Semaforo velocidad caudal","Istruzione semafori velocità","颜色提示: 流速"]
["Auf den Berechnungsblättern \"Ringleitung\" und \"Strangleitung\" werden Fließgeschwindigkeit zwischen 1,5  bis 2,0 m/s automatisch ORANGE und Fließgeschwindigkeiten ab 2,0 m/s automatisch ROT hinterlegt. Dies kann als Hinweis und Aufforderung zur Prüfung verstanden werden.","The spread sheets \"ring main\" and \"line main\" highlights a velocity, of 1,5 up to 2,0 m/s in ORANGE and a velocity exceeding 2,0m/s automatically in RED. This indication can be understood as the request to check and verify your results. ","Las velocidades del caudal entre 1.5 y 2.0 m / s son automáticamente NARANJA y las velocidades de flujo desde 2.0 m / s se almacenan automáticamente en ROJO en las hojas de cálculo \"sistema de anillo\" y \"sistema en serie\". Esto puede entenderse como una advertencia y solicitud de examen.","Le velocità di flusso tra 1,5 e 2,0 m/s sono automaticamente ARANCIONE e le velocità di flusso oltre 2,0 m/s sono automaticamente evidenziate  in ROSSO sui fogli di calcolo \"Circuito ad anello\" e \"Circuito in Derivazione\". Questo può essere inteso come un suggerimento e una richiesta di valutazione.","在计算表“主环路部分”和“主线部分”中，如果流速介于1.5至2.0m/s之间，它们将以橙色标记；如果流速超过 2.0 m/s，它们将以红色标记。这样可以提示这些数值需要检查并校核是否符合要求。"]
["Sprache wählen","Select language","Seleccione el idioma","Seleziona la lingua","语言"]